{"text_format":"1","workbook":"xlsx","n_sheets":22,"sheets":["Cover Page","Contents","Facility Info","Operational Data","Operational Summary","Perf. Form 1","Energy Form 1","Permit Compliance","Improvements","Public Liasion","CO2 N2O","Residue Quality ","Water","Air (periodic)","Air (CEMS)","HCl","SO2","NOx","TOC","Particulates","CO 95% 10 min","NH3"],"not_rendered":{"charts":7,"images":3,"macros":1,"external_links":0,"defined_names":22,"comments":0,"pivot_tables":0},"unopened":[],"bounds":{"document_bytes":16777216,"sheet_cells":100000,"rows_first":2000,"rows_last":500,"rows_between":2000,"halvings":0,"cell_chars":16384,"cell_head_chars":4096},"cells_cut":0,"cells_raw":0,"read":"whole","date_system":"1900"}

{"sheet":"Cover Page","index":0,"n_rows":54,"n_cols":14,"rows_kept":54,"cut":false,"hidden":false,"merged":[[49,2,49,3],[49,6,49,8],[53,2,53,3],[36,1,36,8],[40,2,40,8],[42,2,42,4],[44,2,44,4],[46,2,46,3],[46,6,46,8],[47,2,47,3],[47,6,47,8],[13,13,18,15],[34,1,34,8],[7,1,23,8],[28,1,28,8],[30,1,30,8],[32,1,32,8]]}
[null,null,null,"Add company logo"]
[null,null,null,null,null,null,null,null,null,null,null,null,null,"Version 22.3  30/11/22"]
[]
[]
[]
[]
[]
[null,"Add photo"]
[]
[]
[]
[]
[null,null,null,null,null,null,null,null,null,null,null,null,null,"Notes:"]
[null,null,null,null,null,null,null,null,null,null,null,null,null,"This template may require adjustments by individual operators to meet specific reporting requirements as defined in the site Permit(s)"]
[]
[]
[]
[]
[]
[]
[]
[]
[]
[]
[]
[]
[]
[]
[null,"Annual Performance Report 2022"]
[]
[null,"Permit EPR/WP3438HZ"]
[]
[null,"Suffolk Energy from Waste Facility"]
[]
[]
[]
[null,"SUEZ Recycling and Recovery Suffolk Ltd"]
[]
[null,"Year:",2022]
[]
[null,"Address:","Lodge Lane, Great Blakenham, Suffolk, IP6 0JE"]
[]
[null,"Tel: ","01473 839149"]
[]
[null,"Email: ","james.clarke@suez.com"]
[]
[null,"Prepared by:","Richard Watkins",null,null,"Position:","EIR Manager"]
[null,null,"Robert Taylor",null,null,null,"Technical Plant Engineer"]
[]
[null,"Approved by:","James Clarke",null,null,"Position:","EfW Plant Manager"]
[]
[null,"Version:",3]
[]
[null,"Issue Date:","2023-03-28"]

{"sheet":"Contents","index":1,"n_rows":45,"n_cols":11,"rows_kept":45,"cut":false,"hidden":false,"merged":[[44,0,47,9],[37,1,37,6],[38,1,38,6],[39,1,39,6],[40,1,40,6],[41,1,41,6],[42,1,42,6],[36,1,36,6],[22,1,22,6],[23,1,23,6],[24,1,24,6],[27,1,27,6],[28,1,28,6],[29,1,29,6],[30,1,30,6],[31,1,31,6],[32,1,32,6],[35,1,35,6],[21,1,21,6],[9,1,9,6],[10,1,10,6],[11,1,11,6],[13,1,13,6],[14,1,14,6],[15,1,15,6],[16,1,16,6],[17,1,17,6],[18,1,18,6],[19,1,19,6],[20,1,20,6],[12,1,12,6],[4,10,7,14],[8,1,8,6],[3,1,3,6],[4,1,4,6],[5,1,5,6],[6,1,6,6],[7,1,7,6]]}
[{"$f":"+'Cover Page'!$B$29","v":"Annual Performance Report 2022"},null,null,null,{"$f":"+'Cover Page'!$B$33","v":"Suffolk Energy from Waste Facility"}]
[]
["Contents",null,null,null,null,null,null,null,null,null,"Notes:"]
["Section","Subject",null,null,null,null,null,"Page ",null,null,"Section references and Page nos. to be inserted"]
[null,"Facility Information",null,null,null,null,null,null,null,null,"Sections and Subjects may require adjustment by individual operators to meet specific reporting requirements as defined in the sites Permit(s)"]
[null,"Operational Data"]
[null,"Operational Summary"]
[null,"Performance Form 1"]
[null,"Energy Form 1"]
[null,"Permit Compliance"]
[null,"Improvements"]
[null,"Public Liaison"]
[null,"Carbon dioxide and nitrous oxide emissions"]
[null,"Residue Quality "]
[null,"Emissions to Water"]
[null,"Emissions to Air (periodically monitored)"]
[null,"Emissions to Air (continuously monitored)"]
[null,"Hydrogen Chloride emissions"]
[null,"Sulphur Dioxide emissions"]
[null,"Oxides of Nitrogen emissions"]
[null,"Total Organic Carbon emissions"]
[null,"Particulate Matter emissions"]
[null,"Carbon Monoxide emissions"]
[]
[]
[]
["Version Control"]
["Section","Information",null,null,null,null,null,"Date"]
[1,"Original issue"]
[2,"Line availability data amended in Operational Data",null,null,null,null,null,"2023-02-24"]
[3,"Q2 APCR tonnage amended",null,null,null,null,null,"2023-03-28"]
[]
[]
[]
["Distribution"]
["Copy","Name, Role",null,null,null,null,null,"No."]
[]
[]
[]
[]
[]
[]
[]
[]
["This report is required under the Industrial Emissions Directive’s Article 55(2) requirements on reporting and public information on waste incineration plants and co-incineration plants, which require the operator to produce an annual report on the functioning and monitoring of the plant and make it available to the public. "]

{"sheet":"Facility Info","index":2,"n_rows":22,"n_cols":11,"rows_kept":22,"cut":false,"hidden":false,"merged":[[4,0,17,8],[21,0,53,8],[4,10,13,13],[21,10,30,13]]}
[{"$f":"+'Cover Page'!$B$29","v":"Annual Performance Report 2022"},null,null,null,{"$f":"+'Cover Page'!$B$33","v":"Suffolk Energy from Waste Facility"}]
[]
["Plant Description and Design",null,null,null,null,null,null,null,null,null,"Notes:"]
[]
["This non-hazardous waste incinerator operates 24/7 across two furnace lines and can receive up to 295,000 tonnes of municipal waste and commercial/Industrial waste per annum. The heat produced by waste incineration is used to raise superheated steam which generates approximately 179,000 MWh/annum of electricity.\n\nActivities associated with the incineration are receipt and storage of municipal waste and commercial/industrial waste, production of steam and electricity, abatement of flue gas and handling of Incinerator Bottom Ash (IBA) and Air Pollution Control Residue (APCR).\n\nSuffolk EfW commissioning finished on 1st December 2014, when the plant was handed over from the EPC\ncontractor to SUEZ UK. Permit conditions have applied since this date. The data included in this report corresponds to the following period: 1st January 2021 to 31st December 2021.",null,null,null,null,null,null,null,null,null,"Include summary of plant design, design capacity, no. of combustion lines, electrical and heat capacity and any other general information that describes the facility, its location and purpose "]
[]
[]
[]
[]
[]
[]
[]
[]
[]
[]
[]
[]
[]
[]
["Summary of Operational Processes and Procedures"]
[]
["RECEPTION HALL & BUNKER\nIncoming waste is delivered to site by refuse collection trucks. It is then checked in, weighed and delivered\ninto the reception hall.  A large reception hall allows for refuse collection trucks to manoeuvre and tip waste safely. Air needed for combustion is drawn into the furnace from here so that negative pressure is maintained in order to avoid odour and dust escaping the building.  Waste vehicles reverse to a wheel stop and tip their loads into a large concrete bunker. Mixing of waste occurs as the cranes driver sorts the waste looking for unsuitable material to be removed, and to improve the homogeneity of the incinerator feedstock.\n\nCONTROL ROOM\nThe plant’s control room centralises the operation of all equipment, including the grab cranes used to mix and load waste into a hopper that feeds the furnace. All on-site functions are monitored automatically and manually.  Its systems verify in real time that equipment is functioning properly, continuously monitor the combustion gas, and maximise the efficiency of the entire EfW process.\n\nGRATE AND BOILER\nWaste is lifted into the charging hoppers by the crane. From here it falls into the furnace-charging chute and then is introduced onto the grate system by hydraulic feeders for incineration. An auxiliary burner can be used to help keeping the temperature above 850°C if required. The thermal energy released from the burning is used to convert water to super-heated steam along a boiler composed of 6 vertical passes. At high pressure, this steam drives a turbine to generate electricity.\n\nELECTRICITY GENERATION\nElectricity is generated at 11kv, with an electric production of 203,863 MWh/annum and exporting 180,346 MWh/annum to the national grid.\n\nINCINERATOR BOTTOM ASH (IBA)\nAsh left on the grate after incineration is carried by conveyor, after quenching, to the IBA processing facility.  Up to 65,000 tonne of IBA is processed on site by the removal of ferrous and non-ferrous metal, stabilised and separated into fraction sizes of IBA prior to the export from site of the processed IBA and metals for re-use.\n\nEMISSION CONTROL & AIR POLLUTION CONTROL RESIDUE (APCR)\nThe gases from the furnace are subject to a rigorous cleaning process involving urea as selective non-catalytic reduction (SNCR), lime and active carbon injections. This removes oxides of nitrogen, acidic gases, dioxins, and heavy metals from the gas stream.  The cleaned gas passes through fine-fabric bag filters to remove solid particles before it is emitted through the stack. The resultant APCR residue, or fly-ash, contains particles from the incineration process, lime used in the flue gas treatment, salts and carbon dust. It is stored in a sealed silo until it is tankered away for recycling.\n\nEMISSIONS MONITORING\nAs they pass through the stack, the residual flue gases from the process are continuously monitored before release. This data is relayed automatically to the control room.",null,null,null,null,null,null,null,null,null,"Include summary of key processes and procedures such as (but not limited to); waste reception, control rooms, grate, bed and boiler, energy & heat  generation, cooling systems, residue management, emission controls, health and safety systems, maintenance"]

{"sheet":"Operational Data","index":3,"n_rows":65,"n_cols":11,"rows_kept":65,"cut":false,"hidden":false,"merged":[[52,0,56,0],[5,10,6,10],[7,10,18,10],[33,1,38,1],[3,1,3,2],[7,1,19,1],[23,1,26,1],[28,1,29,1]]}
[{"$f":"+'Cover Page'!$B$29","v":"Annual Performance Report 2022"},null,null,null,{"$f":"+'Cover Page'!$B$33","v":"Suffolk Energy from Waste Facility"}]
[]
["Operational Data",null,null,null,null,null,null,null,null,null,"Notes:"]
["Plant Size",295000,null,"tonnes pa",89,"MWth",26,"MWe",null,null,"* - RDF to include SRF "]
["No. of combustion lines",2,null,"No. of Turbines:",null,1,null,null,null,null,"** - CHP plants only"]
[null,null,null,null,null,null,null,null,null,null,"2020 updates include;  heat in MWh, water in Litres, NCV in MJ/kg"]
["Waste types received","Unit","Q1","Q2","Q3","Q4","Year Total","%"]
["Household / Local Authority","tonnes",58723,47415,56885,56638,{"$f":"SUM(C8:F8)","v":219661},{"$f":"IF(G8>0,G8/$G$18,\"-\")","v":0.77608581210230465},null,null,"Availability Definition: 'the availability of a line is to be calculated by the number of hours the line reported Continuously Monitored emission levels to the Regulator through the calendar year divided by the total number of hours in that year. \nThe overall plant availability is calculated as the Mean of all lines in the plant. For clarity this includes periods of Other Than Normal Operating Conditions (OTNOC) and abnormal operation.'  \n\nRationale: The primary function of an Energy from Waste facility is the disposal of waste. It follows therefore that the availability of a plant is determined by the period of time a facility spends undertaking this activity."]
["Commercial & Industrial ",null,14377,8231,15948,20012,{"$f":"SUM(C9:F9)","v":58568},0.20692700954292195]
["Hazardous ",null," -   "," -   "," -   "," -   ",0,"-"]
["Clinical",null,960,518,1418,1912,4808,1.6987178354773404E-2]
["Waste wood (biomass) ",null,null,null,null,null,0,"-"]
["Refuse Derived Fuel * - H'hold/LA",null,null,null,null,null,{"$f":"SUM(C13:F13)","v":0},"-"]
["Refuse Derived Fuel *  - C&I",null,null,null,null,null,0,"-"]
["Other [Please specify]",null,null,null,null,null,0,"-"]
["Other [Please specify]"]
["Other [Please specify]"]
["Total waste received",null,{"$f":"SUM(C8:C17)","v":74060},{"$f":"SUM(D8:D17)","v":56164},{"$f":"SUM(E8:E17)","v":74251},{"$f":"SUM(F8:F17)","v":78562},{"$f":"SUM(G8:G17)","v":283037},1]
["Rejected Waste ",null,null,null,null,null,{"$f":"SUM(C19:F19)","v":0},{"$f":"IF(G19>0,G19/$G$18,\"-\")","v":"-"}]
["Unprocessed waste transferred out",null,null,null,null,null,{"$f":"SUM(C20:F20)","v":0},{"$f":"IF(G20>0,G20/$G$18,\"-\")","v":"-"}]
["Total waste combusted",null,{"$f":"C18-SUM(C19:C20)","v":74060},{"$f":"D18-SUM(D19:D20)","v":56164},74251,78562,{"$f":"SUM(C21:F21)","v":283037},{"$f":"IF(G21>0,G21/$G$18,\"-\")","v":1}]
[]
["Energy Usage / Export","Unit","Q1","Q2","Q3","Q4","Year Total","KWh/te"]
["Power Generated","MWh",55024.430399999997,35216.058224,55184.134559999991,54009.475439999995,{"$f":"SUM(C24:F24)","v":199434.09862399998},{"$f":"IF(G24>0,G24*1000/$G$21,\"-\")","v":704.62200568830212}]
["Power Exported",null,48959.739000000001,30956.052000000003,49190.413999999997,47983.368999999992,{"$f":"SUM(C25:F25)","v":177089.57399999996},{"$f":"IF(G25>0,G25*1000/$G$21,\"-\")","v":625.67640979801217}]
["Power Used on site",null,6064.6913999999961,4260.006223999997,5993.7205599999943,6026.1064400000032,{"$f":"SUM(C26:F26)","v":22344.524623999991},{"$f":"IF(G26>0,G26*1000/$G$21,\"-\")","v":78.945595890289923}]
["Power Imported",null,2.9969999999999999,607.52700000000004,3.827,2.1789999999999998,616.53,{"$f":"IF(G27>0,G27*1000/$G$21,\"-\")","v":2.1782664457297103}]
["Parasitic Load","%",{"$f":"IF(C24>0,1-C25/(C24+C27),\"-\")","v":0.11026661951490757},{"$f":"IF(D24>0,1-D25/(D24+D27),\"-\")","v":0.13587509998131053},{"$f":"IF(E24>0,1-E25/(E24+E27),\"-\")","v":0.10867492457534411},{"$f":"IF(F24>0,1-F25/(F24+F27),\"-\")","v":0.11161082737609251},{"$f":"IF(G24>0,1-G25/(G24+G27),\"-\")","v":0.11477621830999529}]
["Thermal Energy Produced **","MWh",null,null,null,null,{"$f":"SUM(C29:F29)","v":0}]
["Thermal Energy Exported **",null,null,null,null,null,0,{"$f":"IF(G30>0,G30*1000/$G$21,\"-\")","v":"-"}]
["R1 value (if applicable)",null,null,null,null,null,null,0.83]
[]
["Waste Disposal & Recovery","Unit","Q1","Q2","Q3","Q4","Year Total","% inputs"]
["APC Residues - produced","tonnes",1818.6,1472.8,1731.54,2023.5400000000002,{"$f":"SUM(C34:F34)","v":7046.48},{"$f":"IF(G34>0,G34/$G$21,\"-\")","v":2.4895967665004928E-2}]
["IBA - produced",null,13341.779999999999,10119.619999999999,11413.98,13179.720000000001,48055.1,{"$f":"IF(G35>0,G35/$G$21,\"-\")","v":0.16978380918395827}]
["Metals recycling",null,2344.54,2181.7799999999997,2462.62,2474.46,{"$f":"SUM(C36:F36)","v":9463.4},3.3435204584559612E-2]
["Other",null,0,0,0,0,{"$f":"SUM(C37:F37)","v":0},"-"]
["Other",null,0,0,0,0,0,"-"]
["Other",null,0,0,0,0,0,"-"]
[]
["Raw Material Usage","Unit","Q1","Q2","Q3","Q4","Year Total","kg or Ltr /te"]
["Mains Water","ltrs",9066000,7854000,8653000,9482000,{"$f":"SUM(C42:F42)","v":35055000},{"$f":"IF(G42>0,G42/$G$21,\"-\")","v":123.85306514695958}]
["Other Water","ltrs",null,null,null,null,0,{"$f":"IF(G43>0,G43/$G$21,\"-\")","v":"-"}]
["Ammonia","kgs",null,null,null,null,0,"-"]
["Urea","kgs",200879.3076,164240.72955999998,190914.26988000001,197917.512259296,{"$f":"SUM(C45:F45)","v":753951.81929929601},2.6637924345555386]
["Activated Carbon","kgs",22740.463968,20561,23058,17734,84093.463967999996,0.29711120442910288]
["Lime / hydrated lime","kgs",735434.01013920014,505097,520285,378142,2138958.0101391999,7.557167473295717]
["Fuel oil","ltrs",17874.770129259199,123416.72732251896,36172.291812000003,29246.018484933596,206709.80774871176,0.73032786437360397]
["Gas","cf",0,0,0,0,0]
["Other",null,0,0,0,0,0]
[]
["Summary ","Line/Unit","Q1","Q2","Q3","Q4","Year Total",null,null,"Hrs in year "]
["Availability of waste combustion by line, hrs",1,2159,1577.5,2155,2153.6999999999998,{"$f":"SUM(C53:F53)","v":8045.2},{"$f":"G53/$J$53","v":0.91840182648401825},null,8760]
[null,2,2108.5,1677.2,2204.6999999999998,2143.6999999999998,8134.0999999999995,{"$f":"G54/$J$53","v":0.92855022831050227}]
[null,3]
[null,4]
[null,5]
["Overall Availability, mean avg. of all lines, hrs",null,null,null,null,null,{"$f":"AVERAGE(G53:G57)","v":8089.65},{"$f":"G58/$J$53","v":0.9234760273972602}]
["Hours of turbine operations, hrs",1,2158.9499999999998,1675.95,2206.3919999999998,2207.1579999999999,8248.4499999999989,{"$f":"G59/$J$53","v":0.94160388127853867}]
["Hours of turbine operations, hrs",2,null,null,null,null,0]
["Hours of heat / steam export",null,null,null,null,null,0,{"$f":"IF(B61>0,G60/J53,\"n/a\")","v":"n/a"}]
["Net Calorific Value of waste","MJ/kg",9137.2482709293399,8779.9845723922517,9185.7759051971334,8870.9023273809526,null,"-"]
["Abnormal Events","qty.",0,0,0,0,0,{"$f":"IF(G63>0,\"yes\",\"no\")","v":"no"}]
["Abnormal operation","hours",0,0,0,0,0,{"$f":"+(G64)/J53","v":0}]
["Permit Breaches","qty.",2,1,1,0,4,{"$f":"IF(G65>0,\"yes\",\"no\")","v":"yes"}]

{"sheet":"Operational Summary","index":4,"n_rows":31,"n_cols":11,"rows_kept":31,"cut":false,"hidden":false,"merged":[[4,0,26,8],[30,0,51,8],[4,10,13,13],[30,10,39,13]]}
[{"$f":"+'Cover Page'!$B$29","v":"Annual Performance Report 2022"},null,null,null,{"$f":"+'Cover Page'!$B$33","v":"Suffolk Energy from Waste Facility"}]
[]
["Summary of Plant Operations and Maintenance during the reporting year",null,null,null,null,null,null,null,null,null,"Notes:"]
[]
["Suffolk EfW has continued to have a successful operating period in 2022 continuing to demonstrate high levels of availability.  2022 was a change in operating philosophy where the lines were subject to only a single planned outage in the calendar year.\n\nThe outage was an unusually lengthy one to facilitate replacement of two banks of superheaters on each line, with the superheaters being upgraded with an Inconel overlay over the entire surface of one bank and over the first two rows of tubes of the other bank.  The Inconel overlay will be more resistant to corrosion and reduce the frequency of future heating surface replacements.  The outage also saw significant repairs / replacement of the bag filter casing which had been subject to corrosion and ongoing replacement of refractory tiles in pass 1. Further works in the outage included the completion of a minor service on the turbine leading to the turbine being out of service for approximately 16 days.\n\nThe plant has spent a proportion of the year without a complete feed train as the condensate reheater was identified as leaking during routine maintenance inspections during the outage and it is hoped that this will be returned to service in the early part of 2023.\n\n",null,null,null,null,null,null,null,null,null,"Include summary of key operational and/or maintenance activity undertaken in the year, such as any major component upgrades and/or replacements "]
[]
[]
[]
[]
[]
[]
[]
[]
[]
[]
[]
[]
[]
[]
[]
[]
[]
[]
[]
[]
[]
[]
[]
["Summary of Residue Handling for the reporting year"]
[]
["All IBA produced by the EfW plant is transferred to the IBA recycling plant by conveyor, the IBA recycling plant is operated by Blue Phoenix. The IBA is non-hazardous, as confirmed by weekly analysis of the IBA,  and undergoes a mechanical separation process to remove all ferrous and non-ferrous metals leaving an IBA aggregate product. The metals are transferred to other operators for recycling and the IBA is applied to land in construction activities as a replacement for virgin (quarried) aggregate. This is in accordance with Environment Agency Regulatory Position Statement (RPS) 206 \"Using unbound IBAA in construction activities\".\n\nAir Pollution Control (APC) residues is the fly ash from the boiler mixed with dry sorbents such as carbon and lime in the flu gas treatment plant. The APC residue is hazardous and is therefore collected and disposed of to landfill\n\nSome additional residues may be produced during cleaning of the boiler during cleaning activities in planned maintenance outages. This boiler ash, often mixed with grit blast residues from the cleaning process, is disposed of to landfill.",null,null,null,null,null,null,null,null,null,"Include in here a summary of residue handling regimes and destinations "]

{"sheet":"Perf. Form 1","index":5,"n_rows":54,"n_cols":10,"rows_kept":54,"cut":false,"hidden":false,"merged":[[47,0,47,1],[49,0,49,9],[50,0,51,9],[38,0,38,9],[39,0,40,9],[43,0,43,1],[43,2,43,9],[45,0,45,1],[46,0,46,1],[36,0,36,3],[36,4,36,5],[36,7,36,8],[37,0,37,3],[37,4,37,5],[37,7,37,8],[34,0,34,3],[34,4,34,5],[34,7,34,8],[35,0,35,3],[35,4,35,5],[35,7,35,8],[31,0,31,3],[31,7,31,8],[32,0,32,3],[32,4,32,5],[32,7,32,8],[33,0,33,3],[33,4,33,5],[33,7,33,8],[23,0,23,3],[23,4,23,5],[23,6,23,7],[23,8,23,9],[25,0,25,9],[26,0,28,9],[21,0,21,1],[21,2,21,3],[21,4,21,5],[21,6,21,7],[21,8,21,9],[22,0,22,3],[22,4,22,5],[22,6,22,7],[22,8,22,9],[19,0,19,1],[19,2,19,3],[19,4,19,5],[19,6,19,7],[19,8,19,9],[20,0,20,1],[20,2,20,3],[20,4,20,5],[20,6,20,7],[20,8,20,9],[17,0,17,1],[17,2,17,3],[17,4,17,5],[17,6,17,7],[17,8,17,9],[18,0,18,1],[18,2,18,3],[18,4,18,5],[18,6,18,7],[18,8,18,9],[15,0,15,1],[15,2,15,3],[15,4,15,5],[15,6,15,7],[15,8,15,9],[16,0,16,9],[13,0,13,1],[13,2,13,3],[13,4,13,5],[13,6,13,7],[13,8,13,9],[14,0,14,3],[14,4,14,5],[14,6,14,7],[14,8,14,9],[11,0,11,1],[11,2,11,3],[11,4,11,5],[11,6,11,7],[11,8,11,9],[12,0,12,1],[12,2,12,3],[12,4,12,5],[12,6,12,7],[12,8,12,9],[9,0,9,9],[10,0,10,1],[10,2,10,3],[10,4,10,5],[10,6,10,7],[10,8,10,9],[2,0,2,4],[3,1,3,4],[5,3,5,4],[5,6,5,7],[8,0,8,1],[8,2,8,3],[8,4,8,5],[8,6,8,7],[8,8,8,9]]}
[{"$f":"+'Cover Page'!C39","v":2022}," Annual Reporting Performance Form 1"]
[]
[{"$f":"+'Cover Page'!B31","v":"Permit EPR/WP3438HZ"},null,null,null,null,"Operator: ",{"$f":"+'Cover Page'!B37:B37","v":"SUEZ Recycling and Recovery Suffolk Ltd"}]
["Facility:",{"$f":"+'Cover Page'!B33:I33","v":"Suffolk Energy from Waste Facility"},null,null,null,"Form:","Performance 1"]
[]
["Reporting  Period from: ",null,null,"2022-01-01",null,"to:","2022-12-31"]
[]
[{"$f":"+A1","v":2022},"Annual Reporting of Waste Disposal and Recovery"]
["Waste Description",null,"Disposal Route(s)",null,"Disposal Tonnes",null,"Recovery Tonnes",null,"% / tonne of waste incinerated"]
["1) Hazardous Wastes"]
["APC Residues",null,"D05",null,7046.46,null,null,null,{"$f":"IF((E11+G11)>0,(E11+G11)/'Operational Data'!$G$21, \"-\")","v":2.489589700286535E-2}]
["IBA",null,null,null,null,null,null,null,{"$f":"IF((E12+G12)>0,(E12+G12)/'Operational Data'!$G$21, \"-\")","v":"-"}]
[null,null,null,null,null,null,null,null,{"$f":"IF((E13+G13)>0,(E13+G13)/'Operational Data'!$G$21, \"-\")","v":"-"}]
[null,null,null,null,null,null,null,null,{"$f":"IF((E14+G14)>0,(E14+G14)/'Operational Data'!$G$21, \"-\")","v":"-"}]
["Total Hazardous Waste",null,null,null,{"$f":"SUM(E11:F14)","v":7046.46},null,{"$f":"SUM(G11:H14)","v":0},null,{"$f":"IF((E15+G15)>0,(E15+G15)/'Operational Data'!$G$21, \"-\")","v":2.489589700286535E-2}]
[]
["2) Non-Hazardous Wastes"]
["IBA",null,"R05",null,null,null,48055.1,null,{"$f":"IF((E18+G18)>0,(E18+G18)/'Operational Data'!$G$21, \"-\")","v":0.16978380918395827}]
["Ferrous Metal",null,"R04",null,null,null,6400.56,null,{"$f":"IF((E19+G19)>0,(E19+G19)/'Operational Data'!$G$21, \"-\")","v":2.2613863205163991E-2}]
["Process Water",null,null,null,null,null,null,null,{"$f":"IF((E20+G20)>0,(E20+G20)/'Operational Data'!$G$21, \"-\")","v":"-"}]
["Non-ferrous metal",null,"R04",null,null,null,3127.14,null,{"$f":"IF((E21+G21)>0,(E21+G21)/'Operational Data'!$G$21, \"-\")","v":1.1048520158141869E-2}]
[null,null,null,null,null,null,null,null,{"$f":"IF((E22+G22)>0,(E22+G22)/'Operational Data'!$G$21, \"-\")","v":"-"}]
["Total Non-Hazardous Waste",null,null,null,{"$f":"SUM(E18:F22)","v":0},null,{"$f":"SUM(G18:H22)","v":57582.799999999996},null,{"$f":"IF((E23+G23)>0,(E23+G23)/'Operational Data'!$G$21, \"-\")","v":0.20344619254726412}]
["TOTAL WASTE",null,null,null,{"$f":"+E23+E15","v":7046.46},null,{"$f":"+G23+G15","v":57582.799999999996},null,{"$f":"IF((E24+G24)>0,(E24+G24)/'Operational Data'!$G$21, \"-\")","v":0.22834208955012947}]
[]
["Operator’s comments :"]
[]
[]
[]
[]
[{"$f":"+A1","v":2022},"Annual Reporting of Water and Other Raw Material Usage"]
["Raw Material",null,null,null,"Usage",null,"Unit","Specific Usage",null,"Unit"]
["Mains Water",null,null,null,{"$f":"+'Operational Data'!G42/1000","v":35055},null,"m3",{"$f":"IF(E33>0,E33/'Operational Data'!$G$21,\"-\")","v":0.12385306514695958},null,"m3/te"]
["Total Water",null,null,null,{"$f":"+'Operational Data'!G43/1000+'Operational Data'!G42/1000","v":35055},null,"m3",{"$f":"IF(E34>0,E34/'Operational Data'!$G$21,\"-\")","v":0.12385306514695958},null,"m3/te"]
["Urea / Ammonia",null,null,null,{"$f":"+'Operational Data'!G45","v":753951.81929929601},null,"kg",{"$f":"IF(E35>0,E35/'Operational Data'!$G$21,\"-\")","v":2.6637924345555386},null,"kg/te"]
["Activated Carbon",null,null,null,{"$f":"+'Operational Data'!G46","v":84093.463967999996},null,"kg",{"$f":"IF(E36>0,E36/'Operational Data'!$G$21,\"-\")","v":0.29711120442910288},null,"kg/te"]
["Lime / hydrated lime / Sodium Bicarb.",null,null,null,{"$f":"+'Operational Data'!G47","v":2138958.0101391999},null,"kg",{"$f":"IF(E37>0,E37/'Operational Data'!$G$21,\"-\")","v":7.557167473295717},null,"kg/te"]
[]
["Operator’s comments :"]
[]
[]
[]
[{"$f":"+A31","v":2022},"Annual Reporting of other performance indicators "]
["Parameter",null,"Results by Line"]
[null,null,"A1","A2","A3","A4","A5",null,"Turbine 1","Turbine 2"]
["Operating hours for the year, hours",null,{"$f":"'Operational Data'!G53","v":8045.2},{"$f":"'Operational Data'!G54","v":8134.0999999999995},null,null,null,null,{"$f":"'Operational Data'!G59","v":8248.4499999999989}]
["Number of periods of abnormal operation, qty.",null,0,0]
["Cumulative hours of abnormal operation for this year, hours",null,0,0]
[]
["Operator’s comments :"]
[]
[]
[]
["Signed: ","Richard Watkins",null,null,null,null,"Date:","2023-01-24"]

{"sheet":"Energy Form 1","index":6,"n_rows":29,"n_cols":7,"rows_kept":29,"cut":false,"hidden":false,"merged":[[15,0,15,2],[15,3,15,4],[15,6,15,8],[17,0,17,8],[18,0,24,8],[13,0,13,2],[13,3,13,4],[13,6,13,8],[14,0,14,2],[14,3,14,4],[14,6,14,8],[11,0,11,2],[11,3,11,4],[11,6,11,8],[12,0,12,2],[12,3,12,4],[12,6,12,8],[9,0,9,2],[9,3,9,4],[9,6,9,8],[10,0,10,2],[10,3,10,4],[10,6,10,8],[4,1,4,4],[6,3,6,4],[6,6,6,7],[8,0,8,2],[8,3,8,4],[8,6,8,8]]}
[{"$f":"+'Cover Page'!C39","v":2022}," Annual Reporting of Energy Usage/Export"]
[]
[{"$f":"+'Cover Page'!B31","v":"Permit EPR/WP3438HZ"},null,null,null,null,"Operator: ",{"$f":"+'Cover Page'!B37:B37","v":"SUEZ Recycling and Recovery Suffolk Ltd"}]
[]
["Facility:",{"$f":"+'Cover Page'!B33:I33","v":"Suffolk Energy from Waste Facility"},null,null,null,"Form:","Energy 1"]
[]
["Reporting  Period from: ",null,null,{"$f":"+'Perf. Form 1'!D6:E6","v":"2022-01-01"},null,"to:",{"$f":"+'Perf. Form 1'!G6:H6","v":"2022-12-31"}]
[]
["Energy Source",null,null,"Energy Usage",null,"Unit","Specific Usage (KWh/tonne incinerated"]
["Electricity Produced",null,null,{"$f":"+'Operational Data'!G24","v":199434.09862399998},null,"MWh",{"$f":"+'Operational Data'!H24","v":704.62200568830212}]
["Electricity Imported   ",null,null,{"$f":"+'Operational Data'!G27","v":616.53},null,"MWh",{"$f":"+'Operational Data'!H27","v":2.1782664457297103}]
["Electricity Exported",null,null,{"$f":"+'Operational Data'!G25","v":177089.57399999996},null,"MWh",{"$f":"+'Operational Data'!H25","v":625.67640979801217}]
["Gas Oil",null,null,{"$f":"'Operational Data'!G48*0.85/1000","v":175.70333658640499},null,"tonnes"]
["Steam/hot water exported",null,null,{"$f":"+'Operational Data'!G30","v":0},null,"GWh",{"$f":"+'Operational Data'!H30","v":"-"}]
[]
[]
[]
["Operator’s comments :"]
["Fuel oil in litres is converted to tonnes using a density value of 0.85."]
[]
[]
[]
[]
[]
[]
[]
[]
[]
["Signed: ","Richard Watkins",null,null,null,null,"Date:"]

{"sheet":"Permit Compliance","index":7,"n_rows":33,"n_cols":12,"rows_kept":33,"cut":false,"hidden":false,"merged":[[25,0,25,10],[17,0,17,10],[30,1,30,3],[30,4,30,6],[30,7,30,9],[26,1,26,3],[26,4,26,6],[26,7,26,9],[27,1,27,3],[27,4,27,6],[27,7,27,9],[22,1,22,3],[22,4,22,6],[22,7,22,9],[23,1,23,3],[23,4,23,6],[31,1,31,3],[31,4,31,6],[31,7,31,9],[28,1,28,3],[28,4,28,6],[28,7,28,9],[29,1,29,3],[29,4,29,6],[29,7,29,9],[23,7,23,9],[20,1,20,3],[20,4,20,6],[20,7,20,9],[21,1,21,3],[21,4,21,6],[21,7,21,9],[18,1,18,3],[18,4,18,6],[18,7,18,9],[19,1,19,3],[19,4,19,6],[19,7,19,9],[15,2,15,4],[15,5,15,8],[15,0,15,1],[13,5,13,8],[14,0,14,1],[14,2,14,4],[14,5,14,8],[7,0,7,1],[7,2,7,8],[8,0,8,1],[8,2,8,4],[8,5,8,8],[8,11,16,14],[32,4,32,8],[9,0,9,1],[9,2,9,4],[9,5,9,8],[10,0,10,1],[10,2,10,4],[10,5,10,8],[11,0,11,1],[11,2,11,4],[11,5,11,8],[12,0,12,1],[12,2,12,4],[12,5,12,8],[13,0,13,1],[13,2,13,4]]}
[{"$f":"+'Cover Page'!$B$29","v":"Annual Performance Report 2022"},null,null,null,{"$f":"+'Cover Page'!$B$33","v":"Suffolk Energy from Waste Facility"}]
[]
["Summary of Permit Compliance"]
[]
["Compliance with permit limits for continuously monitored pollutants"]
[]
["The plant met its emission limits as shown in the table below:"]
["Substance",null,"Percentage time compliant during operation",null,null,null,null,null,null,null,null,"Notes:"]
[null,null,"Half-hourly limit",null,null,"Daily limit",null,null,null,null,null,"Report to 2 decimal places, i.e. xx.xx%\n\nPlease provide a brief summary of each notification or non-compliance in the table (rather than just referring to notifications that were sent to the Regulator).  \n\n"]
["Particulates",null,1,null,null,1]
["Oxides of nitrogen",null,1,null,null,1]
["Sulphur dioxide",null,{"$f":"1-(0.5*2)/(365*24*2)","v":0.99994292237442928},null,null,1]
["Carbon monoxide",null,"100.00% 95% of 10-min averages",null,null,1]
["Total organic carbon",null,{"$f":"1-(0.5*2)/(365*24*2)","v":0.99994292237442928},null,null,1]
["Hydrogen chloride",null,1,null,null,1]
[]
[]
["Summary of any notifications or non-compliances under the permit"]
["Date","Summary of notification or non-compliance [including Line/Reference]",null,null,"Reason ",null,null,"Measures taken to prevent reoccurrence"]
["2022-01-21","SUF-001-22 SO2 half hourly avg breach on Line 2",null,null,"High levels in waste",null,null,"Waste supplier suspended and audits of all 3rd party suppliers commenced"]
["2022-02-03","SUF-002-22 SO2 half hourly avg breach on Line 1",null,null,"High levels in waste",null,null,"Waste supplier suspended and audits of all 3rd party suppliers commenced"]
["2022-06-10","SUF-003-22 TOC half hourly avg breach on Line 2",null,null,"Combustion conditions due to plant trip",null,null,"Incident briefings and training drills"]
["2022-07-18","SUF-004-22 TOC half hourly avg breach on Line 1",null,null,"Combustion control",null,null,"Alarm management and reconfig."]
[]
[]
["Summary of any complaints received and actions to taken to resolve them."]
["Date","Summary of complaint [including Line/Reference]",null,null,"Reason *",null,null,"Measures taken to prevent reoccurrence"]
["2022-01-14","Odour of IBA at complainants home",null,null,"Not substantiated",null,null,"Off site odour checks implemented for 30 days"]
["2022-01-27","Odour of IBA in field/picnic area adjacent to site",null,null,"Not substantiated"]
["2022-02-03","Repeat of complaints from 27/01/22",null,null,"Not substantiated",null,null,"Odour was detected by Comms Mgr. Dust suppression increased over raw ash conveyor to IBA plant."]
["2022-08-11","Info from CLG re odour complaints on Facebook",null,null,"Not substantiated",null,null,"EA informed"]
["2022-12-19","Burning smell detected by complainant between 5pm and 6pm every night for the last 2 years",null,null,"Not substantiated",null,null,"EA informed and offsite odour checks implemented for 30 days."]
[null,null,null,null,"* including whether substantiated by the operator or the EA"]

{"sheet":"Improvements","index":8,"n_rows":38,"n_cols":5,"rows_kept":38,"cut":false,"hidden":false,"merged":[[37,0,37,8],[38,0,47,8],[4,0,4,8],[5,0,13,8],[15,0,15,8],[16,0,24,8],[26,0,26,8],[27,0,35,8]]}
[{"$f":"+'Cover Page'!$B$29","v":"Annual Performance Report 2022"},null,null,null,{"$f":"+'Cover Page'!$B$33","v":"Suffolk Energy from Waste Facility"}]
[]
["Summary of Plant Improvements"]
[]
["Summary of any efficiency improvements that have been completed within the year."]
["Further optimisation of the air cooled condenser cleaning regime has been undertaken in 2022 resulting in more frequent cleaning and an overall improvement in overall cycle efficiency."]
[]
[]
[]
[]
[]
[]
[]
[]
[]
["Summary of any permit improvement conditions that have been completed within the year and the resulting environmental benefits."]
["Nil"]
[]
[]
[]
[]
[]
[]
[]
[]
[]
["Summary of any changes to the plant or operating techniques which required a variation to the permit and a summary of the resulting environmental impact."]
["Nil"]
[]
[]
[]
[]
[]
[]
[]
[]
[]
["Summary of any other improvements made to the plant or planned to be made and a summary of the resulting environmental benefits."]

{"sheet":"Public Liasion","index":9,"n_rows":29,"n_cols":5,"rows_kept":29,"cut":false,"hidden":false,"merged":[[23,0,24,1],[23,2,24,8],[25,0,26,1],[25,2,26,8],[28,0,28,8],[17,0,18,1],[17,2,18,8],[19,0,20,1],[19,2,20,8],[21,0,22,1],[21,2,22,8],[16,0,16,1],[16,2,16,8],[5,0,5,1],[5,2,5,8],[6,0,7,1],[6,2,7,8],[8,0,9,1],[8,2,9,8],[10,0,11,1],[10,2,11,8],[12,0,13,1],[12,2,13,8],[15,0,15,8]]}
[{"$f":"+'Cover Page'!$B$29","v":"Annual Performance Report 2022"},null,null,null,{"$f":"+'Cover Page'!$B$33","v":"Suffolk Energy from Waste Facility"}]
[]
["Details of Public & Stakeholder Liaison"]
[]
["Summary of events held during the reporting year."]
["Date",null,"Description"]
["2022-05-01",null,"Suffolk Show\nThe Suffolk show is a 2 day event where SUEZ join the wider Suffolk Waste Partnership to speak to members of the public about how their waste is treated."]
[]
["Throughout the year",null,"34 adult tours  26 school/community group tours "]
[]
["Throughout the year",null,"10 outreach projects\nProjects inlcuded visits to a Brownies group and SEND school as well as speaking at a Stroke Survivors Group."]
[]
[]
[]
[]
["List of events planned for next year"]
["Date",null,"Description"]
["2023-05-01",null,"Suffolk Show"]
[]
["Throughout the year",null,"Adult tours and school/community group tours "]
[]
["Throughout the year",null,"Outreach projects "]
[]
[]
[]
[]
[]
[]
["If you wish to be involved in the public liasion programme, please contact Siobhan.o'dell@suez.com"]

{"sheet":"CO2 N2O","index":10,"n_rows":22,"n_cols":5,"rows_kept":22,"cut":false,"hidden":false,"merged":[[22,0,23,2],[4,0,4,2],[8,1,8,2],[10,0,10,2],[12,1,12,2],[15,0,15,2],[17,1,17,2],[19,4,19,14],[17,4,17,14],[12,4,12,14],[8,4,8,14],[19,1,19,2]]}
[{"$f":"+'Cover Page'!$B$29","v":"Annual Performance Report 2022"},null,{"$f":"+'Cover Page'!$B$33","v":"Suffolk Energy from Waste Facility"}]
[]
["Carbon dioxide emissions and biogenic content of waste inputs",null,null,null,"Notes:"]
[]
["Carbon dioxide emissions (all types of plant)"]
["Annual mass of carbon dioxide released","x tonnes ",274203]
["Annual mass of carbon dioxide released per tonne of waste burned","x tonnes ",{"$f":"C6/'Operational Data'!G18","v":0.96878853294798917}]
["Annual mass of carbon dioxide released per MWh of energy exported","x tonnes ",{"$f":"C6/'Operational Data'!G25","v":1.5483859032830474}]
["Description of how annual carbon dioxide mass emission has been calculated","Calibrated CEMs measurements for flow, CO2 and O2.",null,null,"Note 1: Where available, data from CO2 CEMS should be used. Otherwise, where no CEMS data is available, a suitable emissions factor should be used based on the tonnage of waste burned e.g.0.992 tCO2/t waste as per Tolvik report 2021, or other justified emissions factor  - refer to embedded Environment Agency guidance note above or updated version for suitable descriptive text."]
[]
["Nitrous oxide emissions (only plants which use ammonia or urea to abate NOx emissions)"]
["Annual mass emissions of nitrous oxide","x tonnes ",6.1260000000000003]
["Description of how annual nitrous oxide mass emission has been calculated","Periodic measurement of N2O, with CEMs flow",null,null,"Note 2: Where available, data from N2O CEMS should be used, or if no CEMS data is available, from periodic monitoring. Otherwise, a suitable emissions factor should be used based on the tonnage of waste burned e.g. 0.0981 kgN20/t waste as per 2021 Pollution Inventory data for plants with urea-based SNCR - refer to embedded Environment Agency guidance note above or updated version for suitable descriptive text."]
["Total annual carbon dioxide and nitrous oxide emissions as carbon dioxide equivalent (whereby 1 t nitrous oxide is equivalent to 298 t carbon dioxide)","x tonnes CO2e",{"$f":"C12*298+C6","v":276028.54800000001}]
[]
["Biogenic fraction of the waste and biogenic CO2 emissions (only plants burning residual municipal waste, refuse derived fuel or solid recovered fuel)"]
["Yearly average biogenic percentage of the waste by net calorific value (NCV)","x %",63.4]
["Description of how biogenic NCV percentage has been calculated or estimated","Periodic waste sampling (annual) is carried out in order to determine the biogenic fraction, and from this a factor is derived to determine the proportion of biogenic CO2 emitted from the plant.",null,null,"Note 3: Where available, data from waste sampling should be used; otherwise, an estimated figure with justification can be used, or a figure assumed on the basis of a national average e.g. 2017 WRAP data for residual waste of 51.8% biogenic energy content - refer to embedded Environment Agency guidance note above or updated version for suitable descriptive text, quoting standards where relevant. "]
["Percentage of total carbon dioxide emissions arising from biogenic waste","x %",63.4]
["Description of how percentage biogenic carbon dioxide emissions have been calculated","Periodic waste sampling (annual) is carried out in order to determine the biogenic fraction, and from this a factor is derived to determine the proportion of biogenic CO2 emitted from the plant.",null,null,"Note 4: Examples include direct measurement via C14 method or BIOMA software - refer to embedded Environment Agency guidance note above or updated version for suitable descriptive text, quoting standards where relevant. Otherwise, as an approximation (and in lieu of any more accurate metrics which may be developed in future), the measured or estimated biogenic fraction by net calorific value can be assumed to be the same as the biogenic CO2 fraction of the total CO2 emissions from the plant. "]
[]
["Comments:"]

{"sheet":"Residue Quality ","index":11,"n_rows":36,"n_cols":6,"rows_kept":36,"cut":false,"hidden":false,"merged":[[35,0,40,6],[32,3,32,4],[34,0,34,6],[27,0,28,1],[29,0,29,1],[30,0,30,1],[31,0,31,1],[32,0,32,1],[29,3,29,4],[30,3,30,4],[29,5,29,6],[30,5,30,6],[31,5,31,6],[32,5,32,6],[20,0,21,1],[20,2,21,6],[22,0,23,1],[22,2,23,6],[31,3,31,4],[27,2,28,2],[28,3,28,4],[28,5,28,6],[27,3,27,6],[26,0,26,6],[5,0,6,6],[7,0,8,6],[9,0,10,6],[14,0,15,1],[14,2,15,6],[16,0,17,1],[16,2,17,6],[18,0,19,1],[18,2,19,6],[12,0,12,6],[13,0,13,1],[13,2,13,6]]}
[{"$f":"+'Cover Page'!$B$29","v":"Annual Performance Report 2022"},null,null,null,{"$f":"+'Cover Page'!$B$33","v":"Suffolk Energy from Waste Facility"}]
[]
["Residue Quality Monitoring Requirements"]
[]
["Summary of monitoring undertaken and compliance"]
["The samples for the quarterly IBA analysis were taken on the 26/01/2022, the 12/04/2022, the 11/07/2022 and the 24/10/2022."]
[]
[]
[]
[]
[]
[]
["Commentary on any specific events"]
["Date & Event",null,"Description"]
[]
[]
[]
[]
[]
[]
[]
[]
[]
[]
[]
[]
["Residue Quality Monitoring Results"]
["Parameter (unit) ",null,"Limit","Normal Operation "]
[null,null,null,"Bottom ash  ",null,"APC Residues"]
["Loss on Ignition (average %)",null,"<5%","N/A"]
["Total Organic Carbon (average %)",null,"<3%",1.73]
["No. of Assessments Undertaken",null,"---",4,null,4]
["No. of Hazardous Results",null,"---",0]
[]
["Comments :"]
["Jan 2022 TOC = 2.50 %\nApr 2022 TOC = 1.60 %\nJul 2022 TOC = 1.81 %\nOct 2022 TOC = 1.02 %"]

{"sheet":"Water","index":12,"n_rows":23,"n_cols":9,"rows_kept":23,"cut":false,"hidden":false,"merged":[[29,0,29,2],[29,3,29,4],[26,0,26,2],[26,3,26,4],[27,0,27,2],[27,3,27,4],[28,0,28,2],[28,3,28,4],[23,0,23,2],[23,3,23,4],[24,0,24,2],[24,3,24,4],[25,0,25,2],[25,3,25,4],[21,0,21,8],[22,0,22,2],[22,3,22,4],[14,0,15,1],[14,2,15,8],[16,0,17,1],[16,2,17,8],[18,0,19,1],[18,2,19,8],[5,0,6,8],[7,0,8,8],[9,0,10,8],[12,0,12,8],[13,0,13,1],[13,2,13,8]]}
[{"$f":"+'Cover Page'!$B$29","v":"Annual Performance Report 2022"},null,null,null,{"$f":"+'Cover Page'!$B$33","v":"Suffolk Energy from Waste Facility"}]
[]
["Emissions to Water"]
[]
["Summary of monitoring undertaken and compliance"]
["There are no discharges to water regulated by the permit. The discharge point S1 has a volume limit of 24m3 per day as detailed in table S3.4. Compliance with the discharge volume limit is reported to the Environment Agency on a quarterly basis in line with permit requirements."]
[]
[]
[]
[]
[]
[]
["Commentary on any specific events"]
["Date & Event",null,"Description"]
[]
[]
[]
[]
[]
[]
[]
["Emissions to Water / Sewer"]
["Parameter",null,null,"Monitoring Frequency",null,"Limit","Target","Max.","Average"]

{"sheet":"Air (periodic)","index":13,"n_rows":41,"n_cols":13,"rows_kept":41,"cut":false,"hidden":false,"merged":[[19,3,19,4],[28,3,28,4],[34,3,34,4],[20,3,20,4],[21,3,21,4],[22,3,22,4],[23,3,23,4],[24,3,24,4],[25,3,25,4],[32,3,32,4],[26,3,26,4],[27,3,27,4],[29,3,29,4],[14,3,14,4],[15,3,15,4],[16,3,16,4],[17,3,17,4],[18,3,18,4],[39,0,39,9],[20,0,20,1],[21,0,21,1],[22,0,22,1],[35,3,35,4],[36,3,36,4],[34,0,34,1],[35,0,35,1],[36,0,36,1],[37,0,37,1],[25,0,25,1],[33,3,33,4],[40,0,41,9],[26,0,26,1],[27,0,27,1],[23,0,23,1],[24,0,24,1],[38,0,38,1],[28,0,28,1],[29,0,29,1],[30,0,30,1],[31,0,31,1],[32,0,32,1],[33,0,33,1],[38,3,38,4],[30,3,30,4],[31,3,31,4],[37,3,37,4],[17,0,17,1],[18,0,18,1],[19,0,19,1],[14,0,14,1],[15,0,15,1],[16,0,16,1],[13,0,13,1],[11,3,11,4],[13,3,13,4],[9,0,10,1],[9,5,9,9],[9,3,10,4],[9,2,10,2],[12,0,12,1],[12,3,12,4],[5,12,8,15],[9,12,11,15],[8,0,8,9],[5,0,6,9],[11,0,11,1]]}
[{"$f":"+'Cover Page'!$B$29","v":"Annual Performance Report 2022"},null,null,null,{"$f":"+'Cover Page'!$B$33","v":"Suffolk Energy from Waste Facility"}]
[]
["Emissions to Air (periodically monitored)"]
[]
["Summary of monitoring undertaken, standards used and compliance",null,null,null,null,null,null,null,null,null,null,null,"Notes:"]
["The compliance monitoring visits were carried out during April and September/October 2022. There were no non-compliances identified during either visit.",null,null,null,null,null,null,null,null,null,null,null,"Template may require adjustment for any bespoke monitoring requirements of permit. "]
[]
[]
["Results of emissions to air that are periodically monitored"]
["Substance",null,"Ref. Period","Emission Limit Value",null,"Average",null,null,null,null,null,null,"User to add additional tables as necessary, depending on whether quarterly or bi-annual reporting is required for the compliance year"]
[null,null,null,null,null,"A1","A2","A3","A4","A5"]
["Hydrogen fluoride",null,"1 hr","2 mg/m3",null,3.1E-2,3.1E-2]
["Ammonia",null,"1 hr","None set mg/m3",null,3.65,1.19]
["Cd and Th and their compounds",null,"6-8hrs","0.05 mg/m3",null,1.5149999999999999E-3,1.475E-3]
["Hg and its compounds",null,"6-8hrs","0.05 mg/m3",null,7.2499999999999995E-4,5.2000000000000006E-4]
["Sb, As, Pb, Cr, Co, Cu, Mn, Ni, V and their compounds",null,"6-8hrs","0.5 mg/m3",null,1.46E-2,1.6500000000000001E-2]
["Dioxins & Furans (I-TEQ)",null,"6-8hrs","0.1 ng/m3",null,3.2500000000000003E-3,1.9499999999999999E-3]
["PCBs (WHO-TEQ Humans / Mammals)",null,"6-8hrs","None set ng/m3",null,1.9000000000000001E-4,1.3499999999999997E-4]
["PCBs (WHO-TEQ Fish)",null,"6-8hrs","None set ng/m3",null,1.0549999999999999E-5,7.4999999999999993E-6]
["PCBs (WHO-TEQ Birds)",null,"6-8hrs","None set ng/m3",null,5.9000000000000003E-4,5.1500000000000005E-4]
["Dioxins & Furans (WHO-TEQ Humans / Mammals)",null,"6-8hrs","None set ng/m3",null,3.65E-3,2.0499999999999997E-3]
["Dioxins & Furans (WHO-TEQ Fish)",null,"6-8hrs","None set ng/m3",null,4.0000000000000001E-3,2.2499999999999998E-3]
["Dioxins & Furans (WHO-TEQ Birds)",null,"6-8hrs","None set ng/m3",null,5.3E-3,3.2500000000000003E-3]
["Anthanthrene",null,"6-8hrs","None set µg/m3",null,1E-3,9.1E-4]
["Benzo(a)anthracene",null,"6-8hrs","None set µg/m3",null,1E-3,9.1E-4]
["Benzo(a)pyrene",null,"6-8hrs","None set µg/m3",null,1E-3,9.1E-4]
["Benzo(b)fluoranthene",null,"6-8hrs","None set µg/m3",null,1E-3,9.1E-4]
["Benzo(b)naptho(2,1-d) thiophene",null,"6-8hrs","None set µg/m3",null,1E-3,9.1E-4]
["Benzo(c)phenanthrene",null,"6-8hrs","None set µg/m3",null,1E-3,9.1E-4]
["Benzo(ghi)perylene",null,"6-8hrs","None set µg/m3",null,1E-3,9.1E-4]
["Benzo(k)fluoranthene",null,"6-8hrs","None set µg/m3",null,1E-3,9.1E-4]
["Cholanthrene",null,"6-8hrs","None set µg/m3",null,1E-3,9.1E-4]
["Chrysene",null,"6-8hrs","None set µg/m3",null,1E-3,9.1E-4]
["Cyclopenta(cd)pyrene",null,"6-8hrs","None set µg/m3",null,1E-3,9.1E-4]
["Dibenzo(ai)pyrene",null,"6-8hrs","None set µg/m3",null,1E-3,9.1E-4]
["Dibenzo(ah)anthracene",null,"6-8hrs","None set µg/m3",null,1E-3,9.1E-4]
["Fluoranthene",null,"6-8hrs","None set µg/m3",null,1.225E-2,2.1000000000000001E-2]
["Indeno(123-cd) pyrene",null,"6-8hrs","None set µg/m3",null,1E-3,9.1E-4]
["Naphthalene",null,"6-8hrs","None set µg/m3",null,9.0499999999999997E-2,9.0499999999999997E-2]
["Comments :"]
["The average result is calculated from the reported values for the H1 and H2 compliance monitoring campaigns. Where results are reported at the laboratory limit of detection the < qualifier is removed for calculation of the average emission as a conservative measure. Where the average has been calculated in this way the reported value is highlighted bold."]

{"sheet":"Air (CEMS)","index":14,"n_rows":28,"n_cols":16,"rows_kept":28,"cut":false,"hidden":false,"merged":[[26,0,26,12],[28,0,29,12],[13,0,14,0],[5,0,6,12],[7,0,8,12],[10,0,10,12],[11,0,12,0],[11,2,12,2],[11,1,12,1],[11,3,11,4],[11,5,11,6],[11,7,11,8],[11,9,11,10],[11,11,11,12]]}
[{"$f":"+'Cover Page'!$B$29","v":"Annual Performance Report 2022"},null,null,null,null,null,null,null,{"$f":"+'Cover Page'!$B$33","v":"Suffolk Energy from Waste Facility"}]
[]
["Emissions to Air (continuously monitored)"]
[null,null,null,null,null,null,null,null,null,null,null,null,null,null,null,"Notes:"]
["Summary of monitoring undertaken, standards used and compliance",null,null,null,null,null,null,null,null,null,null,null,null,null,null,"Template may require adjustment for any bespoke monitoring requirements of permit"]
["The CEMS set up comprises a multigas analyser, FID analyser and oxygen probe for extractive sampling where flue gases are drawn continuously via a heated line to the analysers in the CEMS room for each incineration line. In situ sampling i.e. where the probes are installed directly into the flue gas flow in the stack is for the dust probes only. The set up for the duty analysers is mirrored by the standby analysers. The standby analysers can be switched between incineration Lines 1 and 2 as required. Continuous monitoring is provided by the CEMS as required by the permit. The CEMS are installed in accordance with EN14181 and relevant Environment Agency guidance.",null,null,null,null,null,null,null,null,null,null,null,null,null,null,"Report to 2 decimal places, i.e. xx.xx%"]
[]
[]
[]
[]
["Results of emissions to air that are continuously monitored (maximum and average values for each line)"]
["Substance","Reference Period","Emission Limit Value","A1",null,"A2",null,"A3",null,"A4",null,"A5"]
[null,null,null,"Max.","Avg.","Max.","Avg.","Max.","Avg.","Max.","Avg.","Max.","Avg."]
["Oxides of nitrogen","Daily mean","200 mg/m3 ",{"$f":"NOx!$O$19","v":195.9},{"$f":"NOx!$N$19","v":180.72630525686978},{"$f":"NOx!$O$34","v":194.9},{"$f":"NOx!N34","v":180.45440412186383}]
[null,"½ hourly mean","400 mg/m3 ",{"$f":"NOx!$M$19","v":299},{"$f":"NOx!$L$19","v":180.72630525686978},{"$f":"NOx!$M$34","v":271.39999999999998},{"$f":"NOx!L34","v":180.45440412186383}]
["Particulates","Daily mean","10 mg/m3",{"$f":"Particulates!$O$19","v":3},{"$f":"Particulates!$N$19","v":1.5344105933890884},{"$f":"Particulates!$O$34","v":1.9},{"$f":"Particulates!N34","v":1.027547363031234}]
[null,"½ hourly mean","30 mg/m3 ",{"$f":"Particulates!$M$19","v":4.4000000000000004},{"$f":"Particulates!$L$19","v":1.5344105933890884},{"$f":"Particulates!$M$34","v":7},{"$f":"Particulates!L34","v":1.027547363031234}]
["Total Organic Carbon ","Daily mean","10 mg/m3 ",{"$f":"TOC!$O$19","v":36.1},{"$f":"TOC!$N$19","v":0.59938470728793314},{"$f":"TOC!$O$34","v":1.3},{"$f":"TOC!N34","v":0.49330325140809017}]
[null,"½ hourly mean","20 mg/m3 ",{"$f":"TOC!$M$19","v":158},{"$f":"TOC!$L$19","v":0.59938470728793314},{"$f":"TOC!$M$34","v":26.6},{"$f":"TOC!L34","v":0.49330325140809017}]
["Hydrogen chloride ","Daily mean","10 mg/m3 ",{"$f":"HCl!$O$19","v":8},{"$f":"HCl!$N$19","v":3.676682895260853},{"$f":"HCl!$O$34","v":7.2},{"$f":"HCl!N34","v":3.6211177035330269}]
[null,"½ hourly mean","60 mg/m3 ",{"$f":"HCl!$M$19","v":33.5},{"$f":"HCl!$L$19","v":3.676682895260853},{"$f":"HCl!$M$34","v":23.4},{"$f":"HCl!L34","v":3.6211177035330269}]
["Sulphur dioxide","Daily mean","50 mg/m3 ",{"$f":"'SO2'!$O$19","v":60.6},{"$f":"'SO2'!$N$19","v":34.087400438072478},{"$f":"'SO2'!$O$34","v":45.5},{"$f":"'SO2'!N34","v":30.564740783410134}]
[null,"½ hourly mean","200 mg/m3 ",{"$f":"'SO2'!$M$19","v":204.7},{"$f":"'SO2'!$L$19","v":34.087400438072478},{"$f":"'SO2'!$M$34","v":464.9},{"$f":"'SO2'!L34","v":30.564740783410134}]
["Carbon monoxide ","Daily mean","50 mg/m3 ",{"$f":"'CO 95% 10 min'!Q19","v":10.6},{"$f":"'CO 95% 10 min'!P19","v":1.8083333333333333},{"$f":"'CO 95% 10 min'!Q34","v":7.7},{"$f":"'CO 95% 10 min'!P34","v":1.2083333333333333}]
[null,"95%ile 10-min avg","150 mg/m3 *",{"$f":"'CO 95% 10 min'!M19","v":91.686996459960938},{"$f":"'CO 95% 10 min'!N19","v":1.8083333333333333},{"$f":"'CO 95% 10 min'!M34","v":51.898818969726563},{"$f":"'CO 95% 10 min'!P34","v":1.2083333333333333}]
[" Ammonia","Daily mean","No limit set"]
[]
["Comments :"]

{"sheet":"HCl","index":15,"n_rows":79,"n_cols":17,"rows_kept":79,"cut":false,"hidden":false,"merged":[[12,16,15,18],[51,9,63,9],[66,9,78,9],[4,9,4,14],[4,1,4,3],[4,4,4,6],[48,0,51,6],[47,0,47,6],[6,9,18,9],[21,9,33,9],[36,9,48,9],[3,16,7,18],[9,16,11,18]]}
[{"$f":"+'Cover Page'!$B$29","v":"Annual Performance Report 2022"},null,null,null,{"$f":"+'Cover Page'!$B$33","v":"Suffolk Energy from Waste Facility"}]
[]
["Monitoring of Hydrogen Chloride emissions",null,null,"Whole Installation",null,null,"See  Notes in Cell Q3",null,null,{"$f":"+A3","v":"Monitoring of Hydrogen Chloride emissions"},null,null,null,"Per Combustion Line",null,null,"Notes:"]
[null,null,null,null,null,null,null,null,null,null,null,null,null,null,null,null,"User to add logic to complete Whole installation, Table A5:G18. From the data in Per Combustion Line, Table J6:O79, subject to No. of lines installed"]
["mg/Nm3","1/2 Hourly Reference Periods",null,null,"Daily Reference Periods"]
[{"$f":"+'Cover Page'!C39","v":2022},"1/2 hourly HCl ELV","Monthly 1/2 hourly mean","Highest 1/2 hourly maximum","Daily HCl ELV","Monthly daily mean","Highest daily maximum",null,null,{"$f":"+A6","v":2022},"mg/Nm3","Monthly 1/2 hourly mean","Monthly 1/2 hourly maximum","Monthly daily mean","Monthly daily maximum"]
["Jan",60,{"$f":"+AVERAGE(L7,L22)","v":2.4500000000000002},{"$f":"+AVERAGE(M7,M22)","v":8.0500000000000007},10,{"$f":"AVERAGE(N7,N22)","v":2.4500000000000002},{"$f":"AVERAGE(O7,O22)","v":3.95},null,null,"A1","Jan",2.7,5.2,2.7,3.6]
["Feb",60,{"$f":"+AVERAGE(L8,L23)","v":2.4},6.4499999999999993,10,{"$f":"AVERAGE(N8,N23)","v":2.4},4.0999999999999996,null,null,null,"Feb",2.4,6.3,2.4,4]
["Mar",60,{"$f":"+AVERAGE(L9,L24)","v":3.25},9.8000000000000007,10,{"$f":"AVERAGE(N9,N24)","v":3.25},6.05,null,null,null,"Mar",3.5,9.4,3.5,6.3,null,"Whole Installation table A5:G18:"]
["Apr",60,{"$f":"+AVERAGE(L10,L25)","v":3.3},10.050000000000001,10,{"$f":"AVERAGE(N10,N25)","v":3.3},6.3,null,null,null,"Apr",3.9,10.1,3.9,7.1,null,"Mean: for 1/2 hourly and daily periods calculate mean of values across all operational combustion lines for the month"]
["May",60,{"$f":"+AVERAGE(L11,L26)","v":4},15.1,10,{"$f":"AVERAGE(N11,N26)","v":4},6.1,null,null,null,"May",3.1,14.6,3.1,5.2]
["Jun",60,{"$f":"+AVERAGE(L12,L27)","v":3.35},18.75,10,{"$f":"AVERAGE(N12,N27)","v":3.35},6.3000000000000007,null,null,null,"Jun",3.1,22.6,3.1,6.4]
["Jul",60,{"$f":"+AVERAGE(L13,L28)","v":5.15},28.45,10,{"$f":"AVERAGE(N13,N28)","v":5.15},7.3,null,null,null,"Jul",5.5,33.5,5.5,8,null,"Maximum: for 1/2 hourly and daily periods use the highest value across all operational combustion lines for the month"]
["Aug",60,{"$f":"+AVERAGE(L14,L29)","v":4.6500000000000004},16.549999999999997,10,{"$f":"AVERAGE(N14,N29)","v":4.6500000000000004},6.7,null,null,null,"Aug",4.4000000000000004,16.7,4.4000000000000004,6.7]
["Sep",60,{"$f":"+AVERAGE(L15,L30)","v":4.8499999999999996},11.55,10,{"$f":"AVERAGE(N15,N30)","v":4.8499999999999996},6.7,null,null,null,"Sep",5,14.3,5,6.9]
["Oct",60,{"$f":"+AVERAGE(L16,L31)","v":3.2887096774193543},12.445,10,{"$f":"AVERAGE(N16,N31)","v":3.2887096774193543},5.665,null,null,null,"Oct",3.2119354838709673,16.47,3.2119354838709673,5.28]
["Nov",60,{"$f":"+AVERAGE(L17,L32)","v":4.5381666666666671},16.995000000000001,10,{"$f":"AVERAGE(N17,N32)","v":4.5381666666666671},7.0350000000000001,null,null,null,"Nov",4.4423333333333339,12.53,4.4423333333333339,6.87]
["Dec",60,{"$f":"+AVERAGE(L18,L33)","v":2.5599272486772486},13.68,10,{"$f":"AVERAGE(N18,N33)","v":2.5599272486772486},6.2850000000000001,null,null,null,"Dec",2.8659259259259255,18.18,2.8659259259259255,6.36]
[null,null,null,null,null,null,null,null,null,null,"Annual",{"$f":"AVERAGE(L7:L18)","v":3.676682895260853},{"$f":"MAX(M7:M18)","v":33.5},{"$f":"AVERAGE(N7:N18)","v":3.676682895260853},{"$f":"MAX(O7:O18)","v":8}]
[]
[null,null,null,null,null,null,null,null,null,{"$f":"+A6","v":2022},"mg/Nm3","Monthly 1/2 hourly mean","Monthly 1/2 hourly maximum","Monthly daily mean","Monthly daily maximum"]
[null,null,null,null,null,null,null,null,null,"A2","Jan",2.2000000000000002,10.9,2.2000000000000002,4.3]
[null,null,null,null,null,null,null,null,null,null,"Feb",2.4,6.6,2.4,4.2]
[null,null,null,null,null,null,null,null,null,null,"Mar",3,10.199999999999999,3,5.8]
[null,null,null,null,null,null,null,null,null,null,"Apr",2.7,10,2.7,5.5]
[null,null,null,null,null,null,null,null,null,null,"May",4.9000000000000004,15.6,4.9000000000000004,7]
[null,null,null,null,null,null,null,null,null,null,"Jun",3.6,14.9,3.6,6.2]
[null,null,null,null,null,null,null,null,null,null,"Jul",4.8,23.4,4.8,6.6]
[null,null,null,null,null,null,null,null,null,null,"Aug",4.9000000000000004,16.399999999999999,4.9000000000000004,6.7]
[null,null,null,null,null,null,null,null,null,null,"Sep",4.7,8.8000000000000007,4.7,6.5]
[null,null,null,null,null,null,null,null,null,null,"Oct",3.3654838709677417,8.42,3.3654838709677417,6.05]
[null,null,null,null,null,null,null,null,null,null,"Nov",4.6339999999999995,21.46,4.6339999999999995,7.2]
[null,null,null,null,null,null,null,null,null,null,"Dec",2.2539285714285713,9.18,2.2539285714285713,6.21]
[null,null,null,null,null,null,null,null,null,null,"Annual",{"$f":"AVERAGE(L22:L33)","v":3.6211177035330269},{"$f":"MAX(M22:M33)","v":23.4},{"$f":"AVERAGE(N22:N33)","v":3.6211177035330269},{"$f":"MAX(O22:O33)","v":7.2}]
[]
[null,null,null,null,null,null,null,null,null,{"$f":"+A6","v":2022},"mg/Nm3","Monthly 1/2 hourly mean","Monthly 1/2 hourly maximum","Monthly daily mean","Monthly daily maximum"]
[null,null,null,null,null,null,null,null,null,"A3","Jan"]
[null,null,null,null,null,null,null,null,null,null,"Feb"]
[null,null,null,null,null,null,null,null,null,null,"Mar"]
[null,null,null,null,null,null,null,null,null,null,"Apr"]
[null,null,null,null,null,null,null,null,null,null,"May"]
[null,null,null,null,null,null,null,null,null,null,"Jun"]
[null,null,null,null,null,null,null,null,null,null,"Jul"]
[null,null,null,null,null,null,null,null,null,null,"Aug"]
[null,null,null,null,null,null,null,null,null,null,"Sep"]
[null,null,null,null,null,null,null,null,null,null,"Oct"]
[null,null,null,null,null,null,null,null,null,null,"Nov"]
["Comments :",null,null,null,null,null,null,null,null,null,"Dec"]
[null,null,null,null,null,null,null,null,null,null,"Annual",{"$f":"AVERAGE(L37:L48)","v":{"$error":"#DIV/0!"}},{"$f":"MAX(M37:M48)","v":0},{"$f":"AVERAGE(N37:N48)","v":{"$error":"#DIV/0!"}},{"$f":"MAX(O37:O48)","v":0}]
[]
[null,null,null,null,null,null,null,null,null,{"$f":"+A6","v":2022},"mg/Nm3","Monthly 1/2 hourly mean","Monthly 1/2 hourly maximum","Monthly daily mean","Monthly daily maximum"]
[null,null,null,null,null,null,null,null,null,"A4","Jan"]
[null,null,null,null,null,null,null,null,null,null,"Feb"]
[null,null,null,null,null,null,null,null,null,null,"Mar"]
[null,null,null,null,null,null,null,null,null,null,"Apr"]
[null,null,null,null,null,null,null,null,null,null,"May"]
[null,null,null,null,null,null,null,null,null,null,"Jun"]
[null,null,null,null,null,null,null,null,null,null,"Jul"]
[null,null,null,null,null,null,null,null,null,null,"Aug"]
[null,null,null,null,null,null,null,null,null,null,"Sep"]
[null,null,null,null,null,null,null,null,null,null,"Oct"]
[null,null,null,null,null,null,null,null,null,null,"Nov"]
[null,null,null,null,null,null,null,null,null,null,"Dec"]
[null,null,null,null,null,null,null,null,null,null,"Annual",{"$f":"AVERAGE(L52:L63)","v":{"$error":"#DIV/0!"}},{"$f":"MAX(M52:M63)","v":0},{"$f":"AVERAGE(N52:N63)","v":{"$error":"#DIV/0!"}},{"$f":"MAX(O52:O63)","v":0}]
[]
[null,null,null,null,null,null,null,null,null,{"$f":"+A6","v":2022},"mg/Nm3","Monthly 1/2 hourly mean","Monthly 1/2 hourly maximum","Monthly daily mean","Monthly daily maximum"]
[null,null,null,null,null,null,null,null,null,"A5","Jan"]
[null,null,null,null,null,null,null,null,null,null,"Feb"]
[null,null,null,null,null,null,null,null,null,null,"Mar"]
[null,null,null,null,null,null,null,null,null,null,"Apr"]
[null,null,null,null,null,null,null,null,null,null,"May"]
[null,null,null,null,null,null,null,null,null,null,"Jun"]
[null,null,null,null,null,null,null,null,null,null,"Jul"]
[null,null,null,null,null,null,null,null,null,null,"Aug"]
[null,null,null,null,null,null,null,null,null,null,"Sep"]
[null,null,null,null,null,null,null,null,null,null,"Oct"]
[null,null,null,null,null,null,null,null,null,null,"Nov"]
[null,null,null,null,null,null,null,null,null,null,"Dec"]
[null,null,null,null,null,null,null,null,null,null,"Annual",{"$f":"AVERAGE(L67:L78)","v":{"$error":"#DIV/0!"}},{"$f":"MAX(M67:M78)","v":0},{"$f":"AVERAGE(N67:N78)","v":{"$error":"#DIV/0!"}},{"$f":"MAX(O67:O78)","v":0}]

{"sheet":"SO2","index":16,"n_rows":79,"n_cols":17,"rows_kept":79,"cut":false,"hidden":false,"merged":[[3,16,7,18],[9,16,11,18],[12,16,15,18],[66,9,78,9],[4,1,4,3],[4,4,4,6],[4,9,4,14],[6,9,18,9],[21,9,33,9],[36,9,48,9],[47,0,47,6],[48,0,51,6],[51,9,63,9]]}
[{"$f":"+'Cover Page'!$B$29","v":"Annual Performance Report 2022"},null,null,null,{"$f":"+'Cover Page'!$B$33","v":"Suffolk Energy from Waste Facility"}]
[]
["Monitoring of Sulphur dioxide emissions",null,null,"Whole Installation",null,null,"See  Notes in Cell Q3",null,null,{"$f":"+A3","v":"Monitoring of Sulphur dioxide emissions"},null,null,null,"Per Combustion Line",null,null,"Notes:"]
[null,null,null,null,null,null,null,null,null,null,null,null,null,null,null,null,"User to add logic to complete Whole installation, Table A5:G18. From the data in Per Combustion Line, Table J6:O79, subject to No. of lines installed"]
["mg/Nm3","1/2 Hourly Reference Periods",null,null,"Daily Reference Periods"]
[{"$f":"+'Cover Page'!C39","v":2022},"1/2 hourly SO2 ELV","Monthly 1/2 hourly mean","Highest 1/2 hourly maximum","Daily SO2 ELV","Monthly daily mean","Highest daily maximum",null,null,{"$f":"+A6","v":2022},"mg/Nm3","Monthly 1/2 hourly mean","Monthly 1/2 hourly maximum","Monthly daily mean","Monthly daily maximum"]
["Jan",200,{"$f":"AVERAGE(L7,L22)","v":34.200000000000003},{"$f":"AVERAGE(M7,M22)","v":309.64999999999998},50,{"$f":"AVERAGE(N7,N22)","v":34.200000000000003},{"$f":"AVERAGE(O7,O22)","v":41.6},null,null,"A1","Jan",37.5,154.4,37.5,42.2]
["Feb",200,{"$f":"AVERAGE(L8,L23)","v":35.099999999999994},146.35,50,{"$f":"AVERAGE(N8,N23)","v":35.099999999999994},40.35,null,null,null,"Feb",36.799999999999997,204.7,36.799999999999997,42.1]
["Mar",200,{"$f":"AVERAGE(L9,L24)","v":31.55},129.64999999999998,50,{"$f":"AVERAGE(N9,N24)","v":31.55},40.1,null,null,null,"Mar",33.200000000000003,151.69999999999999,33.200000000000003,40.700000000000003,null,"Whole Installation table A5:G18:"]
["Apr",200,{"$f":"AVERAGE(L10,L25)","v":29.75},85.95,50,{"$f":"AVERAGE(N10,N25)","v":29.75},38.15,null,null,null,"Apr",28.4,66.900000000000006,28.4,39,null,"Mean: for 1/2 hourly and daily periods calculate mean of values across all operational combustion lines for the month"]
["May",200,{"$f":"AVERAGE(L11,L26)","v":31.799999999999997},89.300000000000011,50,{"$f":"AVERAGE(N11,N26)","v":31.799999999999997},35.299999999999997,null,null,null,"May",36.9,102.4,36.9,40]
["Jun",200,{"$f":"AVERAGE(L12,L27)","v":33.049999999999997},125.5,50,{"$f":"AVERAGE(N12,N27)","v":33.049999999999997},42,null,null,null,"Jun",32.9,124.4,32.9,38.5]
["Jul",200,{"$f":"AVERAGE(L13,L28)","v":29.5},129.44999999999999,50,{"$f":"AVERAGE(N13,N28)","v":29.5},38.1,null,null,null,"Jul",30.2,114.3,30.2,39.1,null,"Maximum: for 1/2 hourly and daily periods use the highest value across all operational combustion lines for the month"]
["Aug",200,{"$f":"AVERAGE(L14,L29)","v":26.2},66.25,50,{"$f":"AVERAGE(N14,N29)","v":26.2},35.049999999999997,null,null,null,"Aug",27.5,72.400000000000006,27.5,39.700000000000003]
["Sep",200,{"$f":"AVERAGE(L15,L30)","v":30.65},75.349999999999994,50,{"$f":"AVERAGE(N15,N30)","v":30.65},38.950000000000003,null,null,null,"Sep",33.4,86,33.4,40.700000000000003]
["Oct",200,{"$f":"AVERAGE(L16,L31)","v":36.593548387096767},112.9,50,{"$f":"AVERAGE(N16,N31)","v":36.593548387096767},41.55,null,null,null,"Oct",37.858064516129019,129.80000000000001,37.858064516129019,43]
["Nov",200,{"$f":"AVERAGE(L17,L32)","v":31.948333333333323},154.30000000000001,50,{"$f":"AVERAGE(N17,N32)","v":31.948333333333323},40.4,null,null,null,"Nov",34.816666666666656,158,34.816666666666656,41]
["Dec",200,{"$f":"AVERAGE(L18,L33)","v":37.570965608465606},106,50,{"$f":"AVERAGE(N18,N33)","v":37.570965608465606},50.5,null,null,null,"Dec",39.574074074074076,106.6,39.574074074074076,60.6]
[null,null,null,null,null,null,null,null,null,null,"Annual",{"$f":"AVERAGE(L7:L18)","v":34.087400438072478},{"$f":"MAX(M7:M18)","v":204.7},{"$f":"AVERAGE(N7:N18)","v":34.087400438072478},{"$f":"MAX(O7:O18)","v":60.6}]
[]
[null,null,null,null,null,null,null,null,null,{"$f":"+A6","v":2022},"mg/Nm3","Monthly 1/2 hourly mean","Monthly 1/2 hourly maximum","Monthly daily mean","Monthly daily maximum"]
[null,null,null,null,null,null,null,null,null,"A2","Jan",30.9,464.9,30.9,41]
[null,null,null,null,null,null,null,null,null,null,"Feb",33.4,88,33.4,38.6]
[null,null,null,null,null,null,null,null,null,null,"Mar",29.9,107.6,29.9,39.5]
[null,null,null,null,null,null,null,null,null,null,"Apr",31.1,105,31.1,37.299999999999997]
[null,null,null,null,null,null,null,null,null,null,"May",26.7,76.2,26.7,30.6]
[null,null,null,null,null,null,null,null,null,null,"Jun",33.200000000000003,126.6,33.200000000000003,45.5]
[null,null,null,null,null,null,null,null,null,null,"Jul",28.8,144.6,28.8,37.1]
[null,null,null,null,null,null,null,null,null,null,"Aug",24.9,60.1,24.9,30.4]
[null,null,null,null,null,null,null,null,null,null,"Sep",27.9,64.7,27.9,37.200000000000003]
[null,null,null,null,null,null,null,null,null,null,"Oct",35.329032258064515,96,35.329032258064515,40.1]
[null,null,null,null,null,null,null,null,null,null,"Nov",29.079999999999995,150.6,29.079999999999995,39.799999999999997]
[null,null,null,null,null,null,null,null,null,null,"Dec",35.567857142857136,105.4,35.567857142857136,40.4]
[null,null,null,null,null,null,null,null,null,null,"Annual",{"$f":"AVERAGE(L22:L33)","v":30.564740783410134},{"$f":"MAX(M22:M33)","v":464.9},{"$f":"AVERAGE(N22:N33)","v":30.564740783410134},{"$f":"MAX(O22:O33)","v":45.5}]
[]
[null,null,null,null,null,null,null,null,null,{"$f":"+A6","v":2022},"mg/Nm3","Monthly 1/2 hourly mean","Monthly 1/2 hourly maximum","Monthly daily mean","Monthly daily maximum"]
[null,null,null,null,null,null,null,null,null,"A3","Jan"]
[null,null,null,null,null,null,null,null,null,null,"Feb"]
[null,null,null,null,null,null,null,null,null,null,"Mar"]
[null,null,null,null,null,null,null,null,null,null,"Apr"]
[null,null,null,null,null,null,null,null,null,null,"May"]
[null,null,null,null,null,null,null,null,null,null,"Jun"]
[null,null,null,null,null,null,null,null,null,null,"Jul"]
[null,null,null,null,null,null,null,null,null,null,"Aug"]
[null,null,null,null,null,null,null,null,null,null,"Sep"]
[null,null,null,null,null,null,null,null,null,null,"Oct"]
[null,null,null,null,null,null,null,null,null,null,"Nov"]
["Comments :",null,null,null,null,null,null,null,null,null,"Dec"]
[null,null,null,null,null,null,null,null,null,null,"Annual",{"$f":"AVERAGE(L37:L48)","v":{"$error":"#DIV/0!"}},{"$f":"MAX(M37:M48)","v":0},{"$f":"AVERAGE(N37:N48)","v":{"$error":"#DIV/0!"}},{"$f":"MAX(O37:O48)","v":0}]
[]
[null,null,null,null,null,null,null,null,null,{"$f":"+A6","v":2022},"mg/Nm3","Monthly 1/2 hourly mean","Monthly 1/2 hourly maximum","Monthly daily mean","Monthly daily maximum"]
[null,null,null,null,null,null,null,null,null,"A4","Jan"]
[null,null,null,null,null,null,null,null,null,null,"Feb"]
[null,null,null,null,null,null,null,null,null,null,"Mar"]
[null,null,null,null,null,null,null,null,null,null,"Apr"]
[null,null,null,null,null,null,null,null,null,null,"May"]
[null,null,null,null,null,null,null,null,null,null,"Jun"]
[null,null,null,null,null,null,null,null,null,null,"Jul"]
[null,null,null,null,null,null,null,null,null,null,"Aug"]
[null,null,null,null,null,null,null,null,null,null,"Sep"]
[null,null,null,null,null,null,null,null,null,null,"Oct"]
[null,null,null,null,null,null,null,null,null,null,"Nov"]
[null,null,null,null,null,null,null,null,null,null,"Dec"]
[null,null,null,null,null,null,null,null,null,null,"Annual",{"$f":"AVERAGE(L52:L63)","v":{"$error":"#DIV/0!"}},{"$f":"MAX(M52:M63)","v":0},{"$f":"AVERAGE(N52:N63)","v":{"$error":"#DIV/0!"}},{"$f":"MAX(O52:O63)","v":0}]
[]
[null,null,null,null,null,null,null,null,null,{"$f":"+A6","v":2022},"mg/Nm3","Monthly 1/2 hourly mean","Monthly 1/2 hourly maximum","Monthly daily mean","Monthly daily maximum"]
[null,null,null,null,null,null,null,null,null,"A5","Jan"]
[null,null,null,null,null,null,null,null,null,null,"Feb"]
[null,null,null,null,null,null,null,null,null,null,"Mar"]
[null,null,null,null,null,null,null,null,null,null,"Apr"]
[null,null,null,null,null,null,null,null,null,null,"May"]
[null,null,null,null,null,null,null,null,null,null,"Jun"]
[null,null,null,null,null,null,null,null,null,null,"Jul"]
[null,null,null,null,null,null,null,null,null,null,"Aug"]
[null,null,null,null,null,null,null,null,null,null,"Sep"]
[null,null,null,null,null,null,null,null,null,null,"Oct"]
[null,null,null,null,null,null,null,null,null,null,"Nov"]
[null,null,null,null,null,null,null,null,null,null,"Dec"]
[null,null,null,null,null,null,null,null,null,null,"Annual",{"$f":"AVERAGE(L67:L78)","v":{"$error":"#DIV/0!"}},{"$f":"MAX(M67:M78)","v":0},{"$f":"AVERAGE(N67:N78)","v":{"$error":"#DIV/0!"}},{"$f":"MAX(O67:O78)","v":0}]

{"sheet":"NOx","index":17,"n_rows":79,"n_cols":17,"rows_kept":79,"cut":false,"hidden":false,"merged":[[3,16,7,18],[9,16,11,18],[12,16,15,18],[66,9,78,9],[4,1,4,3],[4,4,4,6],[4,9,4,14],[6,9,18,9],[21,9,33,9],[36,9,48,9],[47,0,47,6],[48,0,51,6],[51,9,63,9]]}
[{"$f":"+'Cover Page'!$B$29","v":"Annual Performance Report 2022"},null,null,null,{"$f":"+'Cover Page'!$B$33","v":"Suffolk Energy from Waste Facility"}]
[]
["Monitoring of Oxides of Nitrogen emissions",null,null,"Whole Installation",null,null,"See  Notes in Cell Q3",null,null,{"$f":"+A3","v":"Monitoring of Oxides of Nitrogen emissions"},null,null,null,"Per Combustion Line",null,null,"Notes:"]
[null,null,null,null,null,null,null,null,null,null,null,null,null,null,null,null,"User to add logic to complete Whole installation, Table A5:G18. From the data in Per Combustion Line, Table J6:O79, subject to No. of lines installed"]
["mg/Nm3","1/2 Hourly Reference Periods",null,null,"Daily Reference Periods"]
[{"$f":"+'Cover Page'!C39","v":2022},"1/2 hourly NOx ELV","Monthly 1/2 hourly mean","Highest 1/2 hourly maximum","Daily NOx ELV","Monthly daily mean","Highest daily maximum",null,null,{"$f":"+A6","v":2022},"mg/Nm3","Monthly 1/2 hourly mean","Monthly 1/2 hourly maximum","Monthly daily mean","Monthly daily maximum"]
["Jan",400,{"$f":"AVERAGE(L7,L22)","v":180},{"$f":"AVERAGE(M7,M22)","v":205.45},200,{"$f":"AVERAGE(N7,N22)","v":180},{"$f":"AVERAGE(O7,O22)","v":180.85},null,null,"A1","Jan",180,202.7,180,181]
["Feb",400,{"$f":"AVERAGE(L8,L23)","v":180.45},238.7,200,{"$f":"AVERAGE(N8,N23)","v":180.45},184.45,null,null,null,"Feb",180.7,249.6,180.7,187.2]
["Mar",400,{"$f":"AVERAGE(L9,L24)","v":180.15},262,200,{"$f":"AVERAGE(N9,N24)","v":180.15},183.95,null,null,null,"Mar",180.3,299,180.3,185.9,null,"Whole Installation table A5:G18:"]
["Apr",400,{"$f":"AVERAGE(L10,L25)","v":180.6},277.89999999999998,200,{"$f":"AVERAGE(N10,N25)","v":180.6},184.35,null,null,null,"Apr",181,284.39999999999998,181,186.2,null,"Mean: for 1/2 hourly and daily periods calculate mean of values across all operational combustion lines for the month"]
["May",400,{"$f":"AVERAGE(L11,L26)","v":180.75},208.5,200,{"$f":"AVERAGE(N11,N26)","v":180.75},184.45,null,null,null,"May",181.5,217.9,181.5,188.8]
["Jun",400,{"$f":"AVERAGE(L12,L27)","v":182.15},256.14999999999998,200,{"$f":"AVERAGE(N12,N27)","v":182.15},192.05,null,null,null,"Jun",183,248.5,183,195.9]
["Jul",400,{"$f":"AVERAGE(L13,L28)","v":180.95},246.05,200,{"$f":"AVERAGE(N13,N28)","v":180.95},188.75,null,null,null,"Jul",180.2,239.3,180.2,182.6,null,"Maximum: for 1/2 hourly and daily periods use the highest value across all operational combustion lines for the month"]
["Aug",400,{"$f":"AVERAGE(L14,L29)","v":180.3},257.60000000000002,200,{"$f":"AVERAGE(N14,N29)","v":180.3},185.45,null,null,null,"Aug",180.3,247.3,180.3,186.9]
["Sep",400,{"$f":"AVERAGE(L15,L30)","v":180.45},245.95,200,{"$f":"AVERAGE(N15,N30)","v":180.45},184.14999999999998,null,null,null,"Sep",180.2,231,180.2,182.1]
["Oct",400,{"$f":"AVERAGE(L16,L31)","v":180.38064516129032},260.2,200,{"$f":"AVERAGE(N16,N31)","v":180.38064516129032},187.5,null,null,null,"Oct",180.59677419354836,265,180.59677419354836,190.2]
["Nov",400,{"$f":"AVERAGE(L17,L32)","v":180.30500000000001},237.75,200,{"$f":"AVERAGE(N17,N32)","v":180.30500000000001},186.15,null,null,null,"Nov",180.39666666666668,232.1,180.39666666666668,185.9]
["Dec",400,{"$f":"AVERAGE(L18,L33)","v":180.59861111111113},274.89999999999998,200,{"$f":"AVERAGE(N18,N33)","v":180.59861111111113},188.35,null,null,null,"Dec",180.52222222222224,295.7,180.52222222222224,191.6]
[null,null,null,null,null,null,null,null,null,null,"Annual",{"$f":"AVERAGE(L7:L18)","v":180.72630525686978},{"$f":"MAX(M7:M18)","v":299},{"$f":"AVERAGE(N7:N18)","v":180.72630525686978},{"$f":"MAX(O7:O18)","v":195.9}]
[]
[null,null,null,null,null,null,null,null,null,{"$f":"+A6","v":2022},"mg/Nm3","Monthly 1/2 hourly mean","Monthly 1/2 hourly maximum","Monthly daily mean","Monthly daily maximum"]
[null,null,null,null,null,null,null,null,null,"A2","Jan",180,208.2,180,180.7]
[null,null,null,null,null,null,null,null,null,null,"Feb",180.2,227.8,180.2,181.7]
[null,null,null,null,null,null,null,null,null,null,"Mar",180,225,180,182]
[null,null,null,null,null,null,null,null,null,null,"Apr",180.2,271.39999999999998,180.2,182.5]
[null,null,null,null,null,null,null,null,null,null,"May",180,199.1,180,180.1]
[null,null,null,null,null,null,null,null,null,null,"Jun",181.3,263.8,181.3,188.2]
[null,null,null,null,null,null,null,null,null,null,"Jul",181.7,252.8,181.7,194.9]
[null,null,null,null,null,null,null,null,null,null,"Aug",180.3,267.89999999999998,180.3,184]
[null,null,null,null,null,null,null,null,null,null,"Sep",180.7,260.89999999999998,180.7,186.2]
[null,null,null,null,null,null,null,null,null,null,"Oct",180.16451612903231,255.4,180.16451612903231,184.8]
[null,null,null,null,null,null,null,null,null,null,"Nov",180.21333333333334,243.4,180.21333333333334,186.4]
[null,null,null,null,null,null,null,null,null,null,"Dec",180.67500000000001,254.1,180.67500000000001,185.1]
[null,null,null,null,null,null,null,null,null,null,"Annual",{"$f":"AVERAGE(L22:L33)","v":180.45440412186383},{"$f":"MAX(M22:M33)","v":271.39999999999998},{"$f":"AVERAGE(N22:N33)","v":180.45440412186383},{"$f":"MAX(O22:O33)","v":194.9}]
[]
[null,null,null,null,null,null,null,null,null,{"$f":"+A6","v":2022},"mg/Nm3","Monthly 1/2 hourly mean","Monthly 1/2 hourly maximum","Monthly daily mean","Monthly daily maximum"]
[null,null,null,null,null,null,null,null,null,"A3","Jan"]
[null,null,null,null,null,null,null,null,null,null,"Feb"]
[null,null,null,null,null,null,null,null,null,null,"Mar"]
[null,null,null,null,null,null,null,null,null,null,"Apr"]
[null,null,null,null,null,null,null,null,null,null,"May"]
[null,null,null,null,null,null,null,null,null,null,"Jun"]
[null,null,null,null,null,null,null,null,null,null,"Jul"]
[null,null,null,null,null,null,null,null,null,null,"Aug"]
[null,null,null,null,null,null,null,null,null,null,"Sep"]
[null,null,null,null,null,null,null,null,null,null,"Oct"]
[null,null,null,null,null,null,null,null,null,null,"Nov"]
["Comments :",null,null,null,null,null,null,null,null,null,"Dec"]
[null,null,null,null,null,null,null,null,null,null,"Annual",{"$f":"AVERAGE(L37:L48)","v":{"$error":"#DIV/0!"}},{"$f":"MAX(M37:M48)","v":0},{"$f":"AVERAGE(N37:N48)","v":{"$error":"#DIV/0!"}},{"$f":"MAX(O37:O48)","v":0}]
[]
[null,null,null,null,null,null,null,null,null,{"$f":"+A6","v":2022},"mg/Nm3","Monthly 1/2 hourly mean","Monthly 1/2 hourly maximum","Monthly daily mean","Monthly daily maximum"]
[null,null,null,null,null,null,null,null,null,"A4","Jan"]
[null,null,null,null,null,null,null,null,null,null,"Feb"]
[null,null,null,null,null,null,null,null,null,null,"Mar"]
[null,null,null,null,null,null,null,null,null,null,"Apr"]
[null,null,null,null,null,null,null,null,null,null,"May"]
[null,null,null,null,null,null,null,null,null,null,"Jun"]
[null,null,null,null,null,null,null,null,null,null,"Jul"]
[null,null,null,null,null,null,null,null,null,null,"Aug"]
[null,null,null,null,null,null,null,null,null,null,"Sep"]
[null,null,null,null,null,null,null,null,null,null,"Oct"]
[null,null,null,null,null,null,null,null,null,null,"Nov"]
[null,null,null,null,null,null,null,null,null,null,"Dec"]
[null,null,null,null,null,null,null,null,null,null,"Annual",{"$f":"AVERAGE(L52:L63)","v":{"$error":"#DIV/0!"}},{"$f":"MAX(M52:M63)","v":0},{"$f":"AVERAGE(N52:N63)","v":{"$error":"#DIV/0!"}},{"$f":"MAX(O52:O63)","v":0}]
[]
[null,null,null,null,null,null,null,null,null,{"$f":"+A6","v":2022},"mg/Nm3","Monthly 1/2 hourly mean","Monthly 1/2 hourly maximum","Monthly daily mean","Monthly daily maximum"]
[null,null,null,null,null,null,null,null,null,"A5","Jan"]
[null,null,null,null,null,null,null,null,null,null,"Feb"]
[null,null,null,null,null,null,null,null,null,null,"Mar"]
[null,null,null,null,null,null,null,null,null,null,"Apr"]
[null,null,null,null,null,null,null,null,null,null,"May"]
[null,null,null,null,null,null,null,null,null,null,"Jun"]
[null,null,null,null,null,null,null,null,null,null,"Jul"]
[null,null,null,null,null,null,null,null,null,null,"Aug"]
[null,null,null,null,null,null,null,null,null,null,"Sep"]
[null,null,null,null,null,null,null,null,null,null,"Oct"]
[null,null,null,null,null,null,null,null,null,null,"Nov"]
[null,null,null,null,null,null,null,null,null,null,"Dec"]
[null,null,null,null,null,null,null,null,null,null,"Annual",{"$f":"AVERAGE(L67:L78)","v":{"$error":"#DIV/0!"}},{"$f":"MAX(M67:M78)","v":0},{"$f":"AVERAGE(N67:N78)","v":{"$error":"#DIV/0!"}},{"$f":"MAX(O67:O78)","v":0}]

{"sheet":"TOC","index":18,"n_rows":79,"n_cols":17,"rows_kept":79,"cut":false,"hidden":false,"merged":[[3,16,7,18],[9,16,11,18],[12,16,15,18],[66,9,78,9],[4,1,4,3],[4,4,4,6],[4,9,4,14],[6,9,18,9],[21,9,33,9],[36,9,48,9],[47,0,47,6],[48,0,51,6],[51,9,63,9]]}
[{"$f":"+'Cover Page'!$B$29","v":"Annual Performance Report 2022"},null,null,null,{"$f":"+'Cover Page'!$B$33","v":"Suffolk Energy from Waste Facility"}]
[]
["Monitoring of Total organic carbon emissions",null,null,"Whole Installation",null,null,"See  Notes in Cell Q3",null,null,{"$f":"+A3","v":"Monitoring of Total organic carbon emissions"},null,null,null,"Per Combustion Line",null,null,"Notes:"]
[null,null,null,null,null,null,null,null,null,null,null,null,null,null,null,null,"User to add logic to complete Whole installation, Table A5:G18. From the data in Per Combustion Line, Table J6:O79, subject to No. of lines installed"]
["mg/Nm3","1/2 Hourly Reference Periods",null,null,"Daily Reference Periods"]
[{"$f":"+'Cover Page'!C39","v":2022},"1/2 hourly TOC ELV","Monthly 1/2 hourly mean","Highest 1/2 hourly maximum","Daily TOC ELV","Monthly daily mean","Highest daily maximum",null,null,{"$f":"+A6","v":2022},"mg/Nm3","Monthly 1/2 hourly mean","Monthly 1/2 hourly maximum","Monthly daily mean","Monthly daily maximum"]
["Jan",20,{"$f":"AVERAGE(L7,L22)","v":0.4},{"$f":"AVERAGE(M7,M22)","v":3.2},10,{"$f":"AVERAGE(N7,N22)","v":0.4},{"$f":"AVERAGE(O7,O22)","v":0.65},null,null,"A1","Jan",0.4,1.2,0.4,0.8]
["Feb",20,{"$f":"AVERAGE(L8,L23)","v":0.4},4.4000000000000004,10,{"$f":"AVERAGE(N8,N23)","v":0.4},0.7,null,null,null,"Feb",0.4,6.4,0.4,0.7]
["Mar",20,{"$f":"AVERAGE(L9,L24)","v":0.4},7.95,10,{"$f":"AVERAGE(N9,N24)","v":0.4},0.55000000000000004,null,null,null,"Mar",0.4,14.8,0.4,0.6,null,"Whole Installation table A5:G18:"]
["Apr",20,{"$f":"AVERAGE(L10,L25)","v":0.45},9.2000000000000011,10,{"$f":"AVERAGE(N10,N25)","v":0.45},0.8,null,null,null,"Apr",0.4,2.6,0.4,0.6,null,"Mean: for 1/2 hourly and daily periods calculate mean of values across all operational combustion lines for the month"]
["May",20,{"$f":"AVERAGE(L11,L26)","v":0.75},2,10,{"$f":"AVERAGE(N11,N26)","v":0.75},1.1000000000000001,null,null,null,"May",0.8,2.2999999999999998,0.8,1.5]
["Jun",20,{"$f":"AVERAGE(L12,L27)","v":0.6},18.5,10,{"$f":"AVERAGE(N12,N27)","v":0.6},1.1000000000000001,null,null,null,"Jun",0.6,10.4,0.6,0.9]
["Jul",20,{"$f":"AVERAGE(L13,L28)","v":0.6},17,10,{"$f":"AVERAGE(N13,N28)","v":0.6},0.95000000000000007,null,null,null,"Jul",0.6,22.8,0.6,1.1000000000000001,null,"Maximum: for 1/2 hourly and daily periods use the highest value across all operational combustion lines for the month"]
["Aug",20,{"$f":"AVERAGE(L14,L29)","v":0.6},11.549999999999999,10,{"$f":"AVERAGE(N14,N29)","v":0.6},0.75,null,null,null,"Aug",0.6,19.399999999999999,0.6,0.8]
["Sep",20,{"$f":"AVERAGE(L15,L30)","v":0.5},6.35,10,{"$f":"AVERAGE(N15,N30)","v":0.5},0.7,null,null,null,"Sep",0.5,2.2999999999999998,0.5,0.7]
["Oct",20,{"$f":"AVERAGE(L16,L31)","v":0.44354838709677424},8.9499999999999993,10,{"$f":"AVERAGE(N16,N31)","v":0.44354838709677424},0.6,null,null,null,"Oct",0.45483870967741941,8,0.45483870967741941,0.6]
["Nov",20,{"$f":"AVERAGE(L17,L32)","v":0.9850000000000001},81.75,10,{"$f":"AVERAGE(N17,N32)","v":0.9850000000000001},18.3,null,null,null,"Nov",1.5933333333333335,158,1.5933333333333335,36.1]
["Dec",20,{"$f":"AVERAGE(L18,L33)","v":0.42757936507936523},4.45,10,{"$f":"AVERAGE(N18,N33)","v":0.42757936507936523},0.7,null,null,null,"Dec",0.44444444444444453,6.3,0.44444444444444453,0.7]
[null,null,null,null,null,null,null,null,null,null,"Annual",{"$f":"AVERAGE(L7:L18)","v":0.59938470728793314},{"$f":"MAX(M7:M18)","v":158},{"$f":"AVERAGE(N7:N18)","v":0.59938470728793314},{"$f":"MAX(O7:O18)","v":36.1}]
[]
[null,null,null,null,null,null,null,null,null,{"$f":"+A6","v":2022},"mg/Nm3","Monthly 1/2 hourly mean","Monthly 1/2 hourly maximum","Monthly daily mean","Monthly daily maximum"]
[null,null,null,null,null,null,null,null,null,"A2","Jan",0.4,5.2,0.4,0.5]
[null,null,null,null,null,null,null,null,null,null,"Feb",0.4,2.4,0.4,0.7]
[null,null,null,null,null,null,null,null,null,null,"Mar",0.4,1.1000000000000001,0.4,0.5]
[null,null,null,null,null,null,null,null,null,null,"Apr",0.5,15.8,0.5,1]
[null,null,null,null,null,null,null,null,null,null,"May",0.7,1.7,0.7,0.7]
[null,null,null,null,null,null,null,null,null,null,"Jun",0.6,26.6,0.6,1.3]
[null,null,null,null,null,null,null,null,null,null,"Jul",0.6,11.2,0.6,0.8]
[null,null,null,null,null,null,null,null,null,null,"Aug",0.6,3.7,0.6,0.7]
[null,null,null,null,null,null,null,null,null,null,"Sep",0.5,10.4,0.5,0.7]
[null,null,null,null,null,null,null,null,null,null,"Oct",0.43225806451612914,9.9,0.43225806451612914,0.6]
[null,null,null,null,null,null,null,null,null,null,"Nov",0.37666666666666682,5.5,0.37666666666666682,0.5]
[null,null,null,null,null,null,null,null,null,null,"Dec",0.41071428571428586,2.6,0.41071428571428586,0.7]
[null,null,null,null,null,null,null,null,null,null,"Annual",{"$f":"AVERAGE(L22:L33)","v":0.49330325140809017},{"$f":"MAX(M22:M33)","v":26.6},{"$f":"AVERAGE(N22:N33)","v":0.49330325140809017},{"$f":"MAX(O22:O33)","v":1.3}]
[]
[null,null,null,null,null,null,null,null,null,{"$f":"+A6","v":2022},"mg/Nm3","Monthly 1/2 hourly mean","Monthly 1/2 hourly maximum","Monthly daily mean","Monthly daily maximum"]
[null,null,null,null,null,null,null,null,null,"A3","Jan"]
[null,null,null,null,null,null,null,null,null,null,"Feb"]
[null,null,null,null,null,null,null,null,null,null,"Mar"]
[null,null,null,null,null,null,null,null,null,null,"Apr"]
[null,null,null,null,null,null,null,null,null,null,"May"]
[null,null,null,null,null,null,null,null,null,null,"Jun"]
[null,null,null,null,null,null,null,null,null,null,"Jul"]
[null,null,null,null,null,null,null,null,null,null,"Aug"]
[null,null,null,null,null,null,null,null,null,null,"Sep"]
[null,null,null,null,null,null,null,null,null,null,"Oct"]
[null,null,null,null,null,null,null,null,null,null,"Nov"]
["Comments :",null,null,null,null,null,null,null,null,null,"Dec"]
[null,null,null,null,null,null,null,null,null,null,"Annual",{"$f":"AVERAGE(L37:L48)","v":{"$error":"#DIV/0!"}},{"$f":"MAX(M37:M48)","v":0},{"$f":"AVERAGE(N37:N48)","v":{"$error":"#DIV/0!"}},{"$f":"MAX(O37:O48)","v":0}]
[]
[null,null,null,null,null,null,null,null,null,{"$f":"+A6","v":2022},"mg/Nm3","Monthly 1/2 hourly mean","Monthly 1/2 hourly maximum","Monthly daily mean","Monthly daily maximum"]
[null,null,null,null,null,null,null,null,null,"A4","Jan"]
[null,null,null,null,null,null,null,null,null,null,"Feb"]
[null,null,null,null,null,null,null,null,null,null,"Mar"]
[null,null,null,null,null,null,null,null,null,null,"Apr"]
[null,null,null,null,null,null,null,null,null,null,"May"]
[null,null,null,null,null,null,null,null,null,null,"Jun"]
[null,null,null,null,null,null,null,null,null,null,"Jul"]
[null,null,null,null,null,null,null,null,null,null,"Aug"]
[null,null,null,null,null,null,null,null,null,null,"Sep"]
[null,null,null,null,null,null,null,null,null,null,"Oct"]
[null,null,null,null,null,null,null,null,null,null,"Nov"]
[null,null,null,null,null,null,null,null,null,null,"Dec"]
[null,null,null,null,null,null,null,null,null,null,"Annual",{"$f":"AVERAGE(L52:L63)","v":{"$error":"#DIV/0!"}},{"$f":"MAX(M52:M63)","v":0},{"$f":"AVERAGE(N52:N63)","v":{"$error":"#DIV/0!"}},{"$f":"MAX(O52:O63)","v":0}]
[]
[null,null,null,null,null,null,null,null,null,{"$f":"+A6","v":2022},"mg/Nm3","Monthly 1/2 hourly mean","Monthly 1/2 hourly maximum","Monthly daily mean","Monthly daily maximum"]
[null,null,null,null,null,null,null,null,null,"A5","Jan"]
[null,null,null,null,null,null,null,null,null,null,"Feb"]
[null,null,null,null,null,null,null,null,null,null,"Mar"]
[null,null,null,null,null,null,null,null,null,null,"Apr"]
[null,null,null,null,null,null,null,null,null,null,"May"]
[null,null,null,null,null,null,null,null,null,null,"Jun"]
[null,null,null,null,null,null,null,null,null,null,"Jul"]
[null,null,null,null,null,null,null,null,null,null,"Aug"]
[null,null,null,null,null,null,null,null,null,null,"Sep"]
[null,null,null,null,null,null,null,null,null,null,"Oct"]
[null,null,null,null,null,null,null,null,null,null,"Nov"]
[null,null,null,null,null,null,null,null,null,null,"Dec"]
[null,null,null,null,null,null,null,null,null,null,"Annual",{"$f":"AVERAGE(L67:L78)","v":{"$error":"#DIV/0!"}},{"$f":"MAX(M67:M78)","v":0},{"$f":"AVERAGE(N67:N78)","v":{"$error":"#DIV/0!"}},{"$f":"MAX(O67:O78)","v":0}]

{"sheet":"Particulates","index":19,"n_rows":79,"n_cols":17,"rows_kept":79,"cut":false,"hidden":false,"merged":[[3,16,7,18],[9,16,11,18],[12,16,15,18],[66,9,78,9],[4,1,4,3],[4,4,4,6],[4,9,4,14],[6,9,18,9],[21,9,33,9],[36,9,48,9],[47,0,47,6],[48,0,51,6],[51,9,63,9]]}
[{"$f":"+'Cover Page'!$B$29","v":"Annual Performance Report 2022"},null,null,null,{"$f":"+'Cover Page'!$B$33","v":"Suffolk Energy from Waste Facility"}]
[]
["Monitoring of Particulate matter emissions",null,null,"Whole Installation",null,null,"See  Notes in Cell Q3",null,null,{"$f":"+A3","v":"Monitoring of Particulate matter emissions"},null,null,null,"Per Combustion Line",null,null,"Notes:"]
[null,null,null,null,null,null,null,null,null,null,null,null,null,null,null,null,"User to add logic to complete Whole installation, Table A5:G18. From the data in Per Combustion Line, Table J6:O79, subject to No. of lines installed"]
["mg/Nm3","1/2 Hourly Reference Periods",null,null,"Daily Reference Periods"]
[{"$f":"+'Cover Page'!C39","v":2022},"1/2 hourly PM ELV","Monthly 1/2 hourly mean","Highest 1/2 hourly maximum","Daily PM ELV","Monthly daily mean","Highest daily maximum",null,null,{"$f":"+A6","v":2022},"mg/Nm3","Monthly 1/2 hourly mean","Monthly 1/2 hourly maximum","Monthly daily mean","Monthly daily maximum"]
["Jan",30,{"$f":"AVERAGE(L7,L22)","v":1},{"$f":"AVERAGE(M7,M22)","v":2.85},10,{"$f":"AVERAGE(N7,N22)","v":1},{"$f":"AVERAGE(O7,O22)","v":2},null,null,"A1","Jan",1.1000000000000001,4.4000000000000004,1.1000000000000001,2.8]
["Feb",30,{"$f":"AVERAGE(L8,L23)","v":1},1.5,10,{"$f":"AVERAGE(N8,N23)","v":1},1.1000000000000001,null,null,null,"Feb",0.8,1.4,0.8,0.9]
["Mar",30,{"$f":"AVERAGE(L9,L24)","v":1},1.55,10,{"$f":"AVERAGE(N9,N24)","v":1},1.35,null,null,null,"Mar",1,1.6,1,1.3,null,"Whole Installation table A5:G18:"]
["Apr",30,{"$f":"AVERAGE(L10,L25)","v":0.95000000000000007},1.4,10,{"$f":"AVERAGE(N10,N25)","v":0.95000000000000007},1.25,null,null,null,"Apr",0.8,1.4,0.8,1.2,null,"Mean: for 1/2 hourly and daily periods calculate mean of values across all operational combustion lines for the month"]
["May",30,{"$f":"AVERAGE(L11,L26)","v":1.4},5.45,10,{"$f":"AVERAGE(N11,N26)","v":1.4},1.9,null,null,null,"May",1.2,3.9,1.2,1.9]
["Jun",30,{"$f":"AVERAGE(L12,L27)","v":1.5},2.6,10,{"$f":"AVERAGE(N12,N27)","v":1.5},1.9000000000000001,null,null,null,"Jun",1.7,2.7,1.7,2.2000000000000002]
["Jul",30,{"$f":"AVERAGE(L13,L28)","v":1.7000000000000002},2.2999999999999998,10,{"$f":"AVERAGE(N13,N28)","v":1.7000000000000002},1.9,null,null,null,"Jul",2.2000000000000002,2.8,2.2000000000000002,2.5,null,"Maximum: for 1/2 hourly and daily periods use the highest value across all operational combustion lines for the month"]
["Aug",30,{"$f":"AVERAGE(L14,L29)","v":1.85},2.3499999999999996,10,{"$f":"AVERAGE(N14,N29)","v":1.85},2,null,null,null,"Aug",2.6,3.3,2.6,2.8]
["Sep",30,{"$f":"AVERAGE(L15,L30)","v":1.9000000000000001},2.8,10,{"$f":"AVERAGE(N15,N30)","v":1.9000000000000001},2,null,null,null,"Sep",2.7,3.9,2.7,2.8]
["Oct",30,{"$f":"AVERAGE(L16,L31)","v":1.1967741935483867},2.65,10,{"$f":"AVERAGE(N16,N31)","v":1.1967741935483867},2.15,null,null,null,"Oct",1.86774193548387,3.3,1.86774193548387,3]
["Nov",30,{"$f":"AVERAGE(L17,L32)","v":1.0466666666666669},1.8,10,{"$f":"AVERAGE(N17,N32)","v":1.0466666666666669},1.25,null,null,null,"Nov",1.5600000000000007,2.2000000000000002,1.5600000000000007,1.8]
["Dec",30,{"$f":"AVERAGE(L18,L33)","v":0.82830687830687832},{"$f":"AVERAGE(M18,M33)","v":1.4},10,{"$f":"AVERAGE(N18,N33)","v":0.82830687830687832},1.2,null,null,null,"Dec",0.8851851851851853,1.7,0.8851851851851853,1.5]
[null,null,null,null,null,null,null,null,null,null,"Annual",{"$f":"AVERAGE(L7:L18)","v":1.5344105933890884},{"$f":"MAX(M7:M18)","v":4.4000000000000004},{"$f":"AVERAGE(N7:N18)","v":1.5344105933890884},{"$f":"MAX(O7:O18)","v":3}]
[]
[null,null,null,null,null,null,null,null,null,{"$f":"+A6","v":2022},"mg/Nm3","Monthly 1/2 hourly mean","Monthly 1/2 hourly maximum","Monthly daily mean","Monthly daily maximum"]
[null,null,null,null,null,null,null,null,null,"A2","Jan",0.9,1.3,0.9,1.2]
[null,null,null,null,null,null,null,null,null,null,"Feb",1.2,1.6,1.2,1.3]
[null,null,null,null,null,null,null,null,null,null,"Mar",1,1.5,1,1.4]
[null,null,null,null,null,null,null,null,null,null,"Apr",1.1000000000000001,1.4,1.1000000000000001,1.3]
[null,null,null,null,null,null,null,null,null,null,"May",1.6,7,1.6,1.9]
[null,null,null,null,null,null,null,null,null,null,"Jun",1.3,2.5,1.3,1.6]
[null,null,null,null,null,null,null,null,null,null,"Jul",1.2,1.8,1.2,1.3]
[null,null,null,null,null,null,null,null,null,null,"Aug",1.1000000000000001,1.4,1.1000000000000001,1.2]
[null,null,null,null,null,null,null,null,null,null,"Sep",1.1000000000000001,1.7,1.1000000000000001,1.2]
[null,null,null,null,null,null,null,null,null,null,"Oct",0.52580645161290351,2,0.52580645161290351,1.3]
[null,null,null,null,null,null,null,null,null,null,"Nov",0.5333333333333331,1.4,0.5333333333333331,0.7]
[null,null,null,null,null,null,null,null,null,null,"Dec",0.77142857142857124,1.1000000000000001,0.77142857142857124,0.9]
[null,null,null,null,null,null,null,null,null,null,"Annual",{"$f":"AVERAGE(L22:L33)","v":1.027547363031234},{"$f":"MAX(M22:M33)","v":7},{"$f":"AVERAGE(N22:N33)","v":1.027547363031234},{"$f":"MAX(O22:O33)","v":1.9}]
[]
[null,null,null,null,null,null,null,null,null,{"$f":"+A6","v":2022},"mg/Nm3","Monthly 1/2 hourly mean","Monthly 1/2 hourly maximum","Monthly daily mean","Monthly daily maximum"]
[null,null,null,null,null,null,null,null,null,"A3","Jan"]
[null,null,null,null,null,null,null,null,null,null,"Feb"]
[null,null,null,null,null,null,null,null,null,null,"Mar"]
[null,null,null,null,null,null,null,null,null,null,"Apr"]
[null,null,null,null,null,null,null,null,null,null,"May"]
[null,null,null,null,null,null,null,null,null,null,"Jun"]
[null,null,null,null,null,null,null,null,null,null,"Jul"]
[null,null,null,null,null,null,null,null,null,null,"Aug"]
[null,null,null,null,null,null,null,null,null,null,"Sep"]
[null,null,null,null,null,null,null,null,null,null,"Oct"]
[null,null,null,null,null,null,null,null,null,null,"Nov"]
["Comments :",null,null,null,null,null,null,null,null,null,"Dec"]
[null,null,null,null,null,null,null,null,null,null,"Annual",{"$f":"AVERAGE(L37:L48)","v":{"$error":"#DIV/0!"}},{"$f":"MAX(M37:M48)","v":0},{"$f":"AVERAGE(N37:N48)","v":{"$error":"#DIV/0!"}},{"$f":"MAX(O37:O48)","v":0}]
[]
[null,null,null,null,null,null,null,null,null,{"$f":"+A6","v":2022},"mg/Nm3","Monthly 1/2 hourly mean","Monthly 1/2 hourly maximum","Monthly daily mean","Monthly daily maximum"]
[null,null,null,null,null,null,null,null,null,"A4","Jan"]
[null,null,null,null,null,null,null,null,null,null,"Feb"]
[null,null,null,null,null,null,null,null,null,null,"Mar"]
[null,null,null,null,null,null,null,null,null,null,"Apr"]
[null,null,null,null,null,null,null,null,null,null,"May"]
[null,null,null,null,null,null,null,null,null,null,"Jun"]
[null,null,null,null,null,null,null,null,null,null,"Jul"]
[null,null,null,null,null,null,null,null,null,null,"Aug"]
[null,null,null,null,null,null,null,null,null,null,"Sep"]
[null,null,null,null,null,null,null,null,null,null,"Oct"]
[null,null,null,null,null,null,null,null,null,null,"Nov"]
[null,null,null,null,null,null,null,null,null,null,"Dec"]
[null,null,null,null,null,null,null,null,null,null,"Annual",{"$f":"AVERAGE(L52:L63)","v":{"$error":"#DIV/0!"}},{"$f":"MAX(M52:M63)","v":0},{"$f":"AVERAGE(N52:N63)","v":{"$error":"#DIV/0!"}},{"$f":"MAX(O52:O63)","v":0}]
[]
[null,null,null,null,null,null,null,null,null,{"$f":"+A6","v":2022},"mg/Nm3","Monthly 1/2 hourly mean","Monthly 1/2 hourly maximum","Monthly daily mean","Monthly daily maximum"]
[null,null,null,null,null,null,null,null,null,"A5","Jan"]
[null,null,null,null,null,null,null,null,null,null,"Feb"]
[null,null,null,null,null,null,null,null,null,null,"Mar"]
[null,null,null,null,null,null,null,null,null,null,"Apr"]
[null,null,null,null,null,null,null,null,null,null,"May"]
[null,null,null,null,null,null,null,null,null,null,"Jun"]
[null,null,null,null,null,null,null,null,null,null,"Jul"]
[null,null,null,null,null,null,null,null,null,null,"Aug"]
[null,null,null,null,null,null,null,null,null,null,"Sep"]
[null,null,null,null,null,null,null,null,null,null,"Oct"]
[null,null,null,null,null,null,null,null,null,null,"Nov"]
[null,null,null,null,null,null,null,null,null,null,"Dec"]
[null,null,null,null,null,null,null,null,null,null,"Annual",{"$f":"AVERAGE(L67:L78)","v":{"$error":"#DIV/0!"}},{"$f":"MAX(M67:M78)","v":0},{"$f":"AVERAGE(N67:N78)","v":{"$error":"#DIV/0!"}},{"$f":"MAX(O67:O78)","v":0}]

{"sheet":"CO 95% 10 min","index":20,"n_rows":79,"n_cols":19,"rows_kept":79,"cut":false,"hidden":false,"merged":[[3,18,7,20],[9,18,11,20],[12,18,15,20],[66,10,78,10],[4,1,4,4],[4,5,4,7],[4,10,4,16],[6,10,18,10],[21,10,33,10],[36,10,48,10],[47,0,47,7],[48,0,51,7],[51,10,63,10]]}
[{"$f":"+'Cover Page'!$B$29","v":"Annual Performance Report 2022"},null,null,null,{"$f":"+'Cover Page'!$B$33","v":"Suffolk Energy from Waste Facility"}]
[]
["Monitoring of Carbon Monoxide (10-minute avg)",null,null,null,"Whole Installation",null,null,"See  Notes in Cell S3",null,{"$f":"+A3","v":"Monitoring of Carbon Monoxide (10-minute avg)"},null,null,null,null,"Per Combustion Line",null,"Notes:",null,"Notes:"]
[null,null,null,null,null,null,null,null,null,null,null,null,null,null,null,null,null,null,"User to add logic to complete Whole installation, Table A5:H18. From the data in Per Combustion Line, Table K6:Q79, subject to No. of lines installed"]
["mg/Nm3","10-minute Reference Periods",null,null,null,"Daily Reference Periods"]
[{"$f":"+'Cover Page'!C39","v":2022},"95%ile 10-min avg CO ELV","95%ile 10-min avg maximum","Monthly CO 10-min avg mean","10-min avg maximum","Daily CO ELV","Monthly daily mean","Highest daily maximum",null,null,{"$f":"+A6","v":2022},"mg/Nm3","95%ile 10-min avg maximum","Monthly CO 10-min avg mean","10-min avg maximum","Monthly daily mean","Monthly daily maximum"]
["Jan",150,{"$f":"AVERAGE(M7,M22)","v":3.0292789936065674},{"$f":"AVERAGE(N7,N22)","v":1},362.1,50,{"$f":"AVERAGE(P7,P22)","v":1},{"$f":"AVERAGE(Q7,Q22)","v":3.25},null,null,"A1","Jan",3.5520319938659668,1.2,339.9,1.2,3.5]
["Feb",{"$f":"+B7","v":150},{"$f":"AVERAGE(M8,M23)","v":2.7805604934692383},{"$f":"AVERAGE(N8,N23)","v":1},{"$f":"AVERAGE(O8,O23)","v":353.29999999999995},{"$f":"+F7","v":50},{"$f":"AVERAGE(P8,P23)","v":1},3.25,null,null,null,"Feb",3.2015609741210938,1.2,422.2,1.2,3.5]
["Mar",{"$f":"+B8","v":150},2.7595510482788086,0.95,285.55,{"$f":"+F8","v":50},{"$f":"AVERAGE(P9,P24)","v":0.95},3.75,null,null,null,"Mar",3.911884069442749,1.3,352.7,1.3,5.6,null,"Whole Installation table A5:H18:"]
["Apr",150,4.6353120803833008,0.9,335.2,50,{"$f":"AVERAGE(P10,P25)","v":0.9},3.75,null,null,null,"Apr",3.4378409385681152,1,392.7,1,5,null,"Mean: for 10-min and daily periods use average of all operational combustion lines."]
["May",150,48.109964847564697,0.44999999999999996,268,50,{"$f":"AVERAGE(P11,P26)","v":0.44999999999999996},1.7,null,null,null,"May",91.686996459960938,0.6,409,0.6,2.9]
["Jun",150,25.304357528686523,1.6,508.85,50,{"$f":"AVERAGE(P12,P27)","v":1.6},9.15,null,null,null,"Jun",12.069667816162109,2.2000000000000002,388.1,2.2000000000000002,10.6]
["Jul",150,18.666644096374512,2.25,398.8,50,{"$f":"AVERAGE(P13,P28)","v":2.25},7,null,null,null,"Jul",21.057153701782227,2.7,419.8,2.7,7.8,null,"Maximum: for 10-min and daily periods use the highest of all operational combustion lines in any month."]
["Aug",150,14.009921312332153,1.75,358.1,50,{"$f":"AVERAGE(P14,P29)","v":1.75},6.85,null,null,null,"Aug",21.156526565551758,2.2000000000000002,330.1,2.2000000000000002,7.8]
["Sep",150,9.4694819450378418,2,385.75,50,{"$f":"AVERAGE(P15,P30)","v":2},6.9,null,null,null,"Sep",13.196086883544922,2.2999999999999998,376,2.2999999999999998,6.5]
["Oct",150,5.7138299942016602,2.15,406,50,{"$f":"AVERAGE(P16,P31)","v":2.15},4.5500000000000007,null,null,null,"Oct",7.5865030288696289,2.2999999999999998,368,2.2999999999999998,4.2]
["Nov",150,10.176422595977783,2.35,451.5,50,{"$f":"AVERAGE(P17,P32)","v":2.35},5.85,null,null,null,"Nov",14.821227073669434,2.5,389,2.5,6.6]
["Dec",150,28.357871055603027,1.7000000000000002,228,50,{"$f":"AVERAGE(P18,P33)","v":1.7000000000000002},3.8,null,null,null,"Dec",4.8169231414794922,2.2000000000000002,272,2.2000000000000002,4.5999999999999996]
[null,null,null,null,null,null,null,null,null,null,null,"Annual",{"$f":"MAX(M7:M18)","v":91.686996459960938},{"$f":"AVERAGE(N7:N18)","v":1.8083333333333333},{"$f":"MAX(O7:O18)","v":422.2},{"$f":"AVERAGE(P7:P18)","v":1.8083333333333333},{"$f":"MAX(Q7:Q18)","v":10.6}]
[]
[null,null,null,null,null,null,null,null,null,null,{"$f":"+A6","v":2022},"mg/Nm3","95%ile 10-min avg maximum","Monthly CO 10-min avg mean","10-min avg maximum","Monthly daily mean","Monthly daily maximum"]
[null,null,null,null,null,null,null,null,null,null,"A2","Jan",2.506525993347168,0.8,384.3,0.8,3]
[null,null,null,null,null,null,null,null,null,null,null,"Feb",2.3595600128173828,0.8,284.39999999999998,0.8,3]
[null,null,null,null,null,null,null,null,null,null,null,"Mar",1.6072180271148682,0.6,218.4,0.6,1.9]
[null,null,null,null,null,null,null,null,null,null,null,"Apr",5.8327832221984863,0.8,277.7,0.8,2.5]
[null,null,null,null,null,null,null,null,null,null,null,"May",4.532933235168457,0.3,127,0.3,0.5]
[null,null,null,null,null,null,null,null,null,null,null,"Jun",38.539047241210938,1,629.6,1,7.7]
[null,null,null,null,null,null,null,null,null,null,null,"Jul",16.276134490966797,1.8,377.8,1.8,6.2]
[null,null,null,null,null,null,null,null,null,null,null,"Aug",6.8633160591125488,1.3,386.1,1.3,5.9]
[null,null,null,null,null,null,null,null,null,null,null,"Sep",5.7428770065307617,1.7,395.5,1.7,7.3]
[null,null,null,null,null,null,null,null,null,null,null,"Oct",3.8411569595336914,2,444,2,4.9000000000000004]
[null,null,null,null,null,null,null,null,null,null,null,"Nov",5.5316181182861328,2.2000000000000002,514,2.2000000000000002,5.0999999999999996]
[null,null,null,null,null,null,null,null,null,null,null,"Dec",51.898818969726563,1.2,184,1.2,3]
[null,null,null,null,null,null,null,null,null,null,null,"Annual",{"$f":"MAX(M22:M33)","v":51.898818969726563},{"$f":"AVERAGE(N22:N33)","v":1.2083333333333333},{"$f":"MAX(O22:O33)","v":629.6},{"$f":"AVERAGE(P22:P33)","v":1.2083333333333333},{"$f":"MAX(Q22:Q33)","v":7.7}]
[]
[null,null,null,null,null,null,null,null,null,null,{"$f":"+A6","v":2022},"mg/Nm3","95%ile 10-min avg maximum","Monthly CO 10-min avg mean","10-min avg maximum","Monthly daily mean","Monthly daily maximum"]
[null,null,null,null,null,null,null,null,null,null,"A3","Jan"]
[null,null,null,null,null,null,null,null,null,null,null,"Feb"]
[null,null,null,null,null,null,null,null,null,null,null,"Mar"]
[null,null,null,null,null,null,null,null,null,null,null,"Apr"]
[null,null,null,null,null,null,null,null,null,null,null,"May"]
[null,null,null,null,null,null,null,null,null,null,null,"Jun"]
[null,null,null,null,null,null,null,null,null,null,null,"Jul"]
[null,null,null,null,null,null,null,null,null,null,null,"Aug"]
[null,null,null,null,null,null,null,null,null,null,null,"Sep"]
[null,null,null,null,null,null,null,null,null,null,null,"Oct"]
[null,null,null,null,null,null,null,null,null,null,null,"Nov"]
["Comments :",null,null,null,null,null,null,null,null,null,null,"Dec"]
["Environment Agency explanatory note: The 10-minute average ELV is based on the “95th percentile”. In this case this means that 95% of the 10 minute averages in the relevant 24-hour period (i.e. 137) must be below 150 mg/Nm3, and 5% (i.e. 7) are allowed to be any value above 150 mg/Nm3. Whilst we expect operators to minimise CO emissions at all times, it is perfectly acceptable for the value of the maximum 10-minute average to be above 150 mg/Nm3, provided the 95th percentile ELV has been met for that period. ",null,null,null,null,null,null,null,null,null,null,"Annual",{"$f":"AVERAGE(M37:M48)","v":{"$error":"#DIV/0!"}},null,{"$f":"MAX(O37:O48)","v":0},{"$f":"AVERAGE(P37:P48)","v":{"$error":"#DIV/0!"}},{"$f":"MAX(Q37:Q48)","v":0}]
[]
[null,null,null,null,null,null,null,null,null,null,{"$f":"+A6","v":2022},"mg/Nm3","95%ile 10-min avg maximum","Monthly CO 10-min avg mean","10-min avg maximum","Monthly daily mean","Monthly daily maximum"]
[null,null,null,null,null,null,null,null,null,null,"A4","Jan"]
[null,null,null,null,null,null,null,null,null,null,null,"Feb"]
[null,null,null,null,null,null,null,null,null,null,null,"Mar"]
[null,null,null,null,null,null,null,null,null,null,null,"Apr"]
[null,null,null,null,null,null,null,null,null,null,null,"May"]
[null,null,null,null,null,null,null,null,null,null,null,"Jun"]
[null,null,null,null,null,null,null,null,null,null,null,"Jul"]
[null,null,null,null,null,null,null,null,null,null,null,"Aug"]
[null,null,null,null,null,null,null,null,null,null,null,"Sep"]
[null,null,null,null,null,null,null,null,null,null,null,"Oct"]
[null,null,null,null,null,null,null,null,null,null,null,"Nov"]
[null,null,null,null,null,null,null,null,null,null,null,"Dec"]
[null,null,null,null,null,null,null,null,null,null,null,"Annual",{"$f":"AVERAGE(M52:M63)","v":{"$error":"#DIV/0!"}},null,{"$f":"MAX(O52:O63)","v":0},{"$f":"AVERAGE(P52:P63)","v":{"$error":"#DIV/0!"}},{"$f":"MAX(Q52:Q63)","v":0}]
[]
[null,null,null,null,null,null,null,null,null,null,{"$f":"+A6","v":2022},"mg/Nm3","95%ile 10-min avg maximum","Monthly CO 10-min avg mean","10-min avg maximum","Monthly daily mean","Monthly daily maximum"]
[null,null,null,null,null,null,null,null,null,null,"A5","Jan"]
[null,null,null,null,null,null,null,null,null,null,null,"Feb"]
[null,null,null,null,null,null,null,null,null,null,null,"Mar"]
[null,null,null,null,null,null,null,null,null,null,null,"Apr"]
[null,null,null,null,null,null,null,null,null,null,null,"May"]
[null,null,null,null,null,null,null,null,null,null,null,"Jun"]
[null,null,null,null,null,null,null,null,null,null,null,"Jul"]
[null,null,null,null,null,null,null,null,null,null,null,"Aug"]
[null,null,null,null,null,null,null,null,null,null,null,"Sep"]
[null,null,null,null,null,null,null,null,null,null,null,"Oct"]
[null,null,null,null,null,null,null,null,null,null,null,"Nov"]
[null,null,null,null,null,null,null,null,null,null,null,"Dec"]
[null,null,null,null,null,null,null,null,null,null,null,"Annual",{"$f":"AVERAGE(M67:M78)","v":{"$error":"#DIV/0!"}},null,{"$f":"MAX(O67:O78)","v":0},{"$f":"AVERAGE(P67:P78)","v":{"$error":"#DIV/0!"}},{"$f":"MAX(Q67:Q78)","v":0}]

{"sheet":"NH3","index":21,"n_rows":79,"n_cols":17,"rows_kept":79,"cut":false,"hidden":false,"merged":[[3,16,7,18],[9,16,11,18],[12,16,15,18],[66,9,78,9],[4,1,4,3],[4,4,4,6],[4,9,4,14],[6,9,18,9],[21,9,33,9],[36,9,48,9],[47,0,47,6],[48,0,51,6],[51,9,63,9]]}
[{"$f":"+'Cover Page'!$B$29","v":"Annual Performance Report 2022"},null,null,null,{"$f":"+'Cover Page'!$B$33","v":"Suffolk Energy from Waste Facility"}]
[]
["Monitoring of Ammonia emissions ",null,null,"Whole Installation",null,null,"See  Notes in Cell Q3",null,null,{"$f":"+A3","v":"Monitoring of Ammonia emissions "},null,null,null,"Per Combustion Line",null,null,"Notes:"]
[null,null,null,null,null,null,null,null,null,null,null,null,null,null,null,null,"User to add logic to complete Whole installation, Table A5:G18. From the data in Per Combustion Line, Table J6:O79, subject to No. of lines installed"]
["mg/Nm3","1/2 Hourly Reference Periods",null,null,"Daily Reference Periods"]
[{"$f":"+'Cover Page'!C39","v":2022},"1/2 hourly NH3 ELV","Monthly 1/2 hourly mean","Highest 1/2 hourly maximum","Daily NH3 ELV","Monthly daily mean","Highest daily maximum",null,null,{"$f":"+A6","v":2022},"mg/Nm3","Monthly 1/2 hourly mean","Monthly 1/2 hourly maximum","Monthly daily mean","Monthly daily maximum"]
["Jan",0,{"$f":"AVERAGE(L7,L22)","v":{"$error":"#DIV/0!"}},{"$f":"AVERAGE(M7,M22)","v":{"$error":"#DIV/0!"}},10,{"$f":"AVERAGE(N7,N22)","v":{"$error":"#DIV/0!"}},{"$f":"AVERAGE(O7,O22)","v":{"$error":"#DIV/0!"}},null,null,"A1","Jan"]
["Feb",{"$f":"+B7","v":0},{"$f":"AVERAGE(L8,L23)","v":{"$error":"#DIV/0!"}},{"$error":"#DIV/0!"},{"$f":"+E7","v":10},{"$f":"AVERAGE(N8,N23)","v":{"$error":"#DIV/0!"}},{"$error":"#DIV/0!"},null,null,null,"Feb"]
["Mar",{"$f":"+B8","v":0},{"$f":"AVERAGE(L9,L24)","v":{"$error":"#DIV/0!"}},{"$error":"#DIV/0!"},{"$f":"+E8","v":10},{"$f":"AVERAGE(N9,N24)","v":{"$error":"#DIV/0!"}},{"$error":"#DIV/0!"},null,null,null,"Mar",null,null,null,null,null,"Whole Installation table A5:G18:"]
["Apr",0,{"$f":"AVERAGE(L10,L25)","v":{"$error":"#DIV/0!"}},{"$error":"#DIV/0!"},10,{"$f":"AVERAGE(N10,N25)","v":{"$error":"#DIV/0!"}},{"$error":"#DIV/0!"},null,null,null,"Apr",null,null,null,null,null,"Mean: for 1/2 hourly and daily periods calculate mean of values across all operational combustion lines for the month"]
["May",0,{"$f":"AVERAGE(L11,L26)","v":{"$error":"#DIV/0!"}},{"$error":"#DIV/0!"},10,{"$f":"AVERAGE(N11,N26)","v":{"$error":"#DIV/0!"}},{"$error":"#DIV/0!"},null,null,null,"May"]
["Jun",0,{"$f":"AVERAGE(L12,L27)","v":{"$error":"#DIV/0!"}},{"$error":"#DIV/0!"},10,{"$f":"AVERAGE(N12,N27)","v":{"$error":"#DIV/0!"}},{"$error":"#DIV/0!"},null,null,null,"Jun"]
["Jul",0,{"$f":"AVERAGE(L13,L28)","v":{"$error":"#DIV/0!"}},{"$error":"#DIV/0!"},10,{"$f":"AVERAGE(N13,N28)","v":{"$error":"#DIV/0!"}},{"$error":"#DIV/0!"},null,null,null,"Jul",null,null,null,null,null,"Maximum: for 1/2 hourly and daily periods use the highest value across all operational combustion lines for the month"]
["Aug",0,{"$f":"AVERAGE(L14,L29)","v":{"$error":"#DIV/0!"}},{"$error":"#DIV/0!"},10,{"$f":"AVERAGE(N14,N29)","v":{"$error":"#DIV/0!"}},{"$error":"#DIV/0!"},null,null,null,"Aug"]
["Sep",0,{"$f":"AVERAGE(L15,L30)","v":{"$error":"#DIV/0!"}},{"$error":"#DIV/0!"},10,{"$f":"AVERAGE(N15,N30)","v":{"$error":"#DIV/0!"}},{"$error":"#DIV/0!"},null,null,null,"Sep"]
["Oct",0,{"$f":"AVERAGE(L16,L31)","v":{"$error":"#DIV/0!"}},{"$error":"#DIV/0!"},10,{"$f":"AVERAGE(N16,N31)","v":{"$error":"#DIV/0!"}},{"$error":"#DIV/0!"},null,null,null,"Oct"]
["Nov",0,{"$f":"AVERAGE(L17,L32)","v":{"$error":"#DIV/0!"}},{"$error":"#DIV/0!"},10,{"$f":"AVERAGE(N17,N32)","v":{"$error":"#DIV/0!"}},{"$error":"#DIV/0!"},null,null,null,"Nov"]
["Dec",0,{"$f":"AVERAGE(L18,L33)","v":{"$error":"#DIV/0!"}},{"$error":"#DIV/0!"},10,{"$f":"AVERAGE(N18,N33)","v":{"$error":"#DIV/0!"}},{"$error":"#DIV/0!"},null,null,null,"Dec"]
[null,null,null,null,null,null,null,null,null,null,"Annual",{"$f":"AVERAGE(L7:L18)","v":{"$error":"#DIV/0!"}},{"$f":"MAX(M7:M18)","v":0},{"$f":"AVERAGE(N7:N18)","v":{"$error":"#DIV/0!"}},{"$f":"MAX(O7:O18)","v":0}]
[]
[null,null,null,null,null,null,null,null,null,{"$f":"+A6","v":2022},"mg/Nm3","Monthly 1/2 hourly mean","Monthly 1/2 hourly maximum","Monthly daily mean","Monthly daily maximum"]
[null,null,null,null,null,null,null,null,null,"A2","Jan"]
[null,null,null,null,null,null,null,null,null,null,"Feb"]
[null,null,null,null,null,null,null,null,null,null,"Mar"]
[null,null,null,null,null,null,null,null,null,null,"Apr"]
[null,null,null,null,null,null,null,null,null,null,"May"]
[null,null,null,null,null,null,null,null,null,null,"Jun"]
[null,null,null,null,null,null,null,null,null,null,"Jul"]
[null,null,null,null,null,null,null,null,null,null,"Aug"]
[null,null,null,null,null,null,null,null,null,null,"Sep"]
[null,null,null,null,null,null,null,null,null,null,"Oct"]
[null,null,null,null,null,null,null,null,null,null,"Nov"]
[null,null,null,null,null,null,null,null,null,null,"Dec"]
[null,null,null,null,null,null,null,null,null,null,"Annual",{"$f":"AVERAGE(L22:L33)","v":{"$error":"#DIV/0!"}},{"$f":"MAX(M22:M33)","v":0},{"$f":"AVERAGE(N22:N33)","v":{"$error":"#DIV/0!"}},{"$f":"MAX(O22:O33)","v":0}]
[]
[null,null,null,null,null,null,null,null,null,{"$f":"+A6","v":2022},"mg/Nm3","Monthly 1/2 hourly mean","Monthly 1/2 hourly maximum","Monthly daily mean","Monthly daily maximum"]
[null,null,null,null,null,null,null,null,null,"A3","Jan"]
[null,null,null,null,null,null,null,null,null,null,"Feb"]
[null,null,null,null,null,null,null,null,null,null,"Mar"]
[null,null,null,null,null,null,null,null,null,null,"Apr"]
[null,null,null,null,null,null,null,null,null,null,"May"]
[null,null,null,null,null,null,null,null,null,null,"Jun"]
[null,null,null,null,null,null,null,null,null,null,"Jul"]
[null,null,null,null,null,null,null,null,null,null,"Aug"]
[null,null,null,null,null,null,null,null,null,null,"Sep"]
[null,null,null,null,null,null,null,null,null,null,"Oct"]
[null,null,null,null,null,null,null,null,null,null,"Nov"]
["Comments :",null,null,null,null,null,null,null,null,null,"Dec"]
["An indicated ELV value of zero in the table above means that no ammonia limit is set in the permit.  ",null,null,null,null,null,null,null,null,null,"Annual",{"$f":"AVERAGE(L37:L48)","v":{"$error":"#DIV/0!"}},{"$f":"MAX(M37:M48)","v":0},{"$f":"AVERAGE(N37:N48)","v":{"$error":"#DIV/0!"}},{"$f":"MAX(O37:O48)","v":0}]
[]
[null,null,null,null,null,null,null,null,null,{"$f":"+A6","v":2022},"mg/Nm3","Monthly 1/2 hourly mean","Monthly 1/2 hourly maximum","Monthly daily mean","Monthly daily maximum"]
[null,null,null,null,null,null,null,null,null,"A4","Jan"]
[null,null,null,null,null,null,null,null,null,null,"Feb"]
[null,null,null,null,null,null,null,null,null,null,"Mar"]
[null,null,null,null,null,null,null,null,null,null,"Apr"]
[null,null,null,null,null,null,null,null,null,null,"May"]
[null,null,null,null,null,null,null,null,null,null,"Jun"]
[null,null,null,null,null,null,null,null,null,null,"Jul"]
[null,null,null,null,null,null,null,null,null,null,"Aug"]
[null,null,null,null,null,null,null,null,null,null,"Sep"]
[null,null,null,null,null,null,null,null,null,null,"Oct"]
[null,null,null,null,null,null,null,null,null,null,"Nov"]
[null,null,null,null,null,null,null,null,null,null,"Dec"]
[null,null,null,null,null,null,null,null,null,null,"Annual",{"$f":"AVERAGE(L52:L63)","v":{"$error":"#DIV/0!"}},{"$f":"MAX(M52:M63)","v":0},{"$f":"AVERAGE(N52:N63)","v":{"$error":"#DIV/0!"}},{"$f":"MAX(O52:O63)","v":0}]
[]
[null,null,null,null,null,null,null,null,null,{"$f":"+A6","v":2022},"mg/Nm3","Monthly 1/2 hourly mean","Monthly 1/2 hourly maximum","Monthly daily mean","Monthly daily maximum"]
[null,null,null,null,null,null,null,null,null,"A5","Jan"]
[null,null,null,null,null,null,null,null,null,null,"Feb"]
[null,null,null,null,null,null,null,null,null,null,"Mar"]
[null,null,null,null,null,null,null,null,null,null,"Apr"]
[null,null,null,null,null,null,null,null,null,null,"May"]
[null,null,null,null,null,null,null,null,null,null,"Jun"]
[null,null,null,null,null,null,null,null,null,null,"Jul"]
[null,null,null,null,null,null,null,null,null,null,"Aug"]
[null,null,null,null,null,null,null,null,null,null,"Sep"]
[null,null,null,null,null,null,null,null,null,null,"Oct"]
[null,null,null,null,null,null,null,null,null,null,"Nov"]
[null,null,null,null,null,null,null,null,null,null,"Dec"]
[null,null,null,null,null,null,null,null,null,null,"Annual",{"$f":"AVERAGE(L67:L78)","v":{"$error":"#DIV/0!"}},{"$f":"MAX(M67:M78)","v":0},{"$f":"AVERAGE(N67:N78)","v":{"$error":"#DIV/0!"}},{"$f":"MAX(O67:O78)","v":0}]